Service,Expense Subtype,Merchant Name,Expense Invoice Date,Total Expense
CHILDREN'S SERVICES,Books/Publications/Resources,AMAZON UK RETAIL AMAZON.C,02/07/2017,22.75
CORPORATE RESOURCES,Conference Expenses,PREMIER INN 44533710,02/07/2017,74.99
BALANCE SHEET,Personal,Amazon UK Marketplace,03/07/2017,-3.99
CHILDREN'S SERVICES,Domestic Goods-Other,AMAZON UK RETAIL AMAZON.C,03/07/2017,17.49
CHILDREN'S SERVICES,Domestic Goods-Other,GIFTVOUCHERSHOP.CO.UK,03/07/2017,408.50
CHILDREN'S SERVICES,Facilities-Market Research,SURVEYMONKEY,03/07/2017,249.17
CHILDREN'S SERVICES,Financial Services-Grants,S R H E,03/07/2017,100.00
CORPORATE RESOURCES,IT Hardware,Amazon UK Marketplace,03/07/2017,29.00
CORPORATE RESOURCES,IT Hardware,AMAZON.CO.UK,03/07/2017,43.28
CORPORATE RESOURCES,Travel/Subsistence,HOTELS COM137647076873,03/07/2017,-135.00
CORPORATE RESOURCES,Use of Public Transport,OYSTER RENEW WEB,03/07/2017,25.00
CORPORATE RESOURCES,Use of Public Transport,TRAINLINE,03/07/2017,33.81
BALANCE SHEET,Personal,CURRYS ONLINE,04/07/2017,-0.48
CHILDREN'S SERVICES,Domestic Goods-Other,CURRYS ONLINE,04/07/2017,712.00
CHILDREN'S SERVICES,Domestic Goods-Other,ARGOS LTD,04/07/2017,22.99
CORPORATE RESOURCES,Conference Expenses,HOLIDAY INN MANCHESTER,04/07/2017,149.00
CORPORATE RESOURCES,Stationery,ASSOCIATED SECURIT,04/07/2017,175.00
CORPORATE RESOURCES,Travel/Subsistence,LUL TICKET MACHINE,04/07/2017,100.00
CORPORATE RESOURCES,Travel/Subsistence,SELFSERVE TICKET,04/07/2017,70.00
NEIGHBOURHOODS & GROWTH,Building-Timber,ACRE LANE BUILDERS,04/07/2017,91.56
NEIGHBOURHOODS & GROWTH (HRA),Use of Public Transport,LUL TICKET MACHINE,04/07/2017,150.00
ADULTS & PUBLIC HEALTH,Financial Services,ROYAL BANK UK /,05/07/2017,400.00
CHILDREN'S SERVICES,Travel/Subsistence,VIRGIN TRAINS,05/07/2017,103.55
CORPORATE RESOURCES,Books/Publications/Resources,AMAZON UK RETAIL AMAZON.C,05/07/2017,7.99
CORPORATE RESOURCES,Books/Publications/Resources,ROYAL MAIL ONLINE SHOP,05/07/2017,130.00
CORPORATE RESOURCES,Books/Publications/Resources,ROYAL MAIL ONLINE SHOP,05/07/2017,130.00
CORPORATE RESOURCES,Books/Publications/Resources,WWW.CARTRIDGEPEOPLE.CO,05/07/2017,40.68
CORPORATE RESOURCES,Books/Publications/Resources,WWWSTAMPS4UCOUK,05/07/2017,41.90
CORPORATE RESOURCES,Books/Publications/Resources,WWWSTAMPS4UCOUK,05/07/2017,63.90
CORPORATE RESOURCES,Charges and Penalties,GRO HM PASSPORT OFFICE,05/07/2017,56.00
CORPORATE RESOURCES,Consultancy-Other,EQUIFAX,05/07/2017,4.76
CORPORATE RESOURCES,Domestic Goods-Commercial,SETON,05/07/2017,22.75
CORPORATE RESOURCES,Stationery,AMAZON UK RETAIL AMAZON.C,05/07/2017,15.59
CORPORATE RESOURCES,Stationery,AMAZON UK RETAIL AMAZON.C,05/07/2017,27.92
CORPORATE RESOURCES,Stationery,TESCO STORE 2764,05/07/2017,24.64
CORPORATE RESOURCES,Stationery,WWWSTAMPS4UCOUK,05/07/2017,-41.90
NEIGHBOURHOODS & GROWTH,Building-Others,FORTRESS MASTER LOCKSMITH,05/07/2017,39.74
NEIGHBOURHOODS & GROWTH,Building-Timber,ACRE LANE BUILDERS,05/07/2017,153.40
NEIGHBOURHOODS & GROWTH,Domestic Goods-Other,ARGOS RETAIL GROUP,05/07/2017,59.98
NEIGHBOURHOODS & GROWTH,Education-Library Books,Amazon UK Marketplace,05/07/2017,17.86
NEIGHBOURHOODS & GROWTH,Furniture-Domestic Furniture,IKEA ONLINE,05/07/2017,107.50
NEIGHBOURHOODS & GROWTH,Horticultural-Other,WWW.SIGN-HOLDERS.CO.UK,05/07/2017,89.50
NEIGHBOURHOODS & GROWTH,Stationery,Amazon UK Marketplace,05/07/2017,5.75
NEIGHBOURHOODS & GROWTH,Stationery,ARGOS,05/07/2017,59.97
NEIGHBOURHOODS & GROWTH,Travel/Subsistence,TFL ROAD CHARGE,05/07/2017,57.50
NEIGHBOURHOODS & GROWTH (HRA),IT Consumables,INTELLISOFTWARE LTD,05/07/2017,80.00
ADULTS & PUBLIC HEALTH,Catering Food & Drink,TESCO STORES 5999,06/07/2017,72.25
ADULTS & PUBLIC HEALTH,Domestic Goods-Other,Amazon Prime,06/07/2017,7.99
ADULTS & PUBLIC HEALTH,Domestic Goods-Other,"Amazon Svcs Europe,SAR",06/07/2017,14.95
ADULTS & PUBLIC HEALTH,Domestic Goods-Other,ETC GENERAL STORES,06/07/2017,7.96
ADULTS & PUBLIC HEALTH,Education-Other,CITY LIT,06/07/2017,55.00
ADULTS & PUBLIC HEALTH,Financial Services,CASH ADVANCE FEE,06/07/2017,11.80
ADULTS & PUBLIC HEALTH,Financial Services,CASH ADVANCE FEE,06/07/2017,2.95
ADULTS & PUBLIC HEALTH,Financial Services,CASH ADVANCE FEE,06/07/2017,11.80
ADULTS & PUBLIC HEALTH,Financial Services,NATWEST BANK /,06/07/2017,250.00
ADULTS & PUBLIC HEALTH,Healthcare Services,WWW.BALENS.CO.UK,06/07/2017,104.32
ADULTS & PUBLIC HEALTH,Healthcare Services,SUBSTANCE CREATE LTD,06/07/2017,154.82
CHILDREN'S SERVICES,Books/Publications/Resources,MORLEYS,06/07/2017,4.90
CHILDREN'S SERVICES,Education-Library Books,AMAZON.CO.UK,06/07/2017,12.74
CHILDREN'S SERVICES,Education-Library Books,Amazon UK Marketplace,06/07/2017,24.13
CHILDREN'S SERVICES,Education-Library Books,Amazon UK Marketplace,06/07/2017,23.45
CHILDREN'S SERVICES,Education-Library Books,AMAZON.CO.UK,06/07/2017,34.03
CHILDREN'S SERVICES,Education-Library Books,Amazon UK Marketplace,06/07/2017,27.14
CHILDREN'S SERVICES,Facilities-Printing,DANTECH,06/07/2017,108.00
CORPORATE RESOURCES,Use of Public Transport,EXPRESS NEWS,06/07/2017,30.00
ADULTS & PUBLIC HEALTH,Catering Food & Drink,ICELAND,07/07/2017,118.69
ADULTS & PUBLIC HEALTH,Financial Services,WIGAN COUNCIL,07/07/2017,406.00
ADULTS & PUBLIC HEALTH,Legal Services-Other,HMCOURTS-SERVICE.G,07/07/2017,60.00
ADULTS & PUBLIC HEALTH,Legal Services-Other,HMCOURTS-SERVICE.G,07/07/2017,60.00
ADULTS & PUBLIC HEALTH,Legal Services-Other,HMCOURTS-SERVICE.G,07/07/2017,40.00
ADULTS & PUBLIC HEALTH,Legal Services-Other,HMCOURTS-SERVICE.G,07/07/2017,40.00
ADULTS & PUBLIC HEALTH,Taxi Fares,WWW.ADDISONLEE.COM,07/07/2017,103.22
ADULTS & PUBLIC HEALTH,Travel/Subsistence,LONDON & SOUTH EAS,07/07/2017,246.00
ADULTS & PUBLIC HEALTH,Travel/Subsistence,LONDON & SOUTH EAS,07/07/2017,45.10
ADULTS & PUBLIC HEALTH,Travel/Subsistence,OYSTER AUTOTOPUP,07/07/2017,20.00
CHILDREN'S SERVICES,Accommodation,PREMIER INN 44033690,07/07/2017,322.50
CORPORATE RESOURCES,Legal Services-Other,HMCOURTS-SERVICE.G,07/07/2017,"9,597.00"
CORPORATE RESOURCES,Legal Services-Other,HMCOURTS-SERVICE.G,07/07/2017,390.00
NEIGHBOURHOODS & GROWTH,Conference Expenses,EB *LONDON HOUSING SYM,07/07/2017,72.00
NEIGHBOURHOODS & GROWTH,Conference Expenses,EB *SEMINAR INTRODUCTI,07/07/2017,269.94
NEIGHBOURHOODS & GROWTH (HRA),Legal Services-Other,HMCOURTS-SERVICE.G,07/07/2017,540.00
NEIGHBOURHOODS & GROWTH (HRA),Legal Services-Other,HMCOURTS-SERVICE.G,07/07/2017,200.00
NEIGHBOURHOODS & GROWTH (HRA),Legal Services-Other,HMCOURTS-SERVICE.G,07/07/2017,200.00
NEIGHBOURHOODS & GROWTH (HRA),Legal Services-Other,HMCOURTS-SERVICE.G,07/07/2017,480.00
NEIGHBOURHOODS & GROWTH (HRA),Legal Services-Other,HMCOURTS-SERVICE.G,07/07/2017,680.00
NEIGHBOURHOODS & GROWTH (HRA),Legal Services-Other,HMCOURTS-SERVICE.G,07/07/2017,240.00
NEIGHBOURHOODS & GROWTH (HRA),Legal Services-Other,HMCOURTS-SERVICE.G,07/07/2017,280.00
ADULTS & PUBLIC HEALTH,Travel/Subsistence,OYSTER BUS AUTOTOP,08/07/2017,20.00
ADULTS & PUBLIC HEALTH,Financial Services,CASH ADVANCE FEE,10/07/2017,7.38
CHILDREN'S SERVICES,Domestic Goods-Other,ARGOS RETAIL GROUP,10/07/2017,49.99
CHILDREN'S SERVICES,Furniture-Domestic Furniture,IKEA ONLINE,10/07/2017,160.00
NEIGHBOURHOODS & GROWTH,Travel/Subsistence,GWR WEBSALES,10/07/2017,14.96
CHILDREN'S SERVICES,Books/Publications/Resources,WWW.WYNSORS.COM,11/07/2017,40.00
CHILDREN'S SERVICES,Domestic Goods-Other,DIY FRAMING LTD,11/07/2017,168.86
CHILDREN'S SERVICES,Domestic Goods-Other,ARGOS LTD,11/07/2017,15.96
CHILDREN'S SERVICES,Education-Supplies,IKEA LIMITED,11/07/2017,18.75
CHILDREN'S SERVICES,Education-Supplies,IKEA LIMITED,11/07/2017,184.00
CHILDREN'S SERVICES,Education-Supplies,IKEA LIMITED,11/07/2017,340.42
CHILDREN'S SERVICES,Travel/Subsistence,"IKEA, WADDON MARSH WAY",11/07/2017,20.00
CORPORATE RESOURCES,Arts & Leisure Services,TICKETS08712200260,11/07/2017,101.65
CORPORATE RESOURCES,Facilities-Advertising,Amazon UK Marketplace,11/07/2017,79.81
CORPORATE RESOURCES,Facilities-Market Research,NATIONBUILDER,11/07/2017,46.98
CORPORATE RESOURCES,Facilities-Retail,AMAZON UK PRIME AMZN.CO.U,11/07/2017,7.99
CORPORATE RESOURCES,Financial Services-Insurance,COLUMBUS TRAINLINE,11/07/2017,2.00
CORPORATE RESOURCES,IT Services,FACEBK 7VTUBCNR62,11/07/2017,40.15
CORPORATE RESOURCES,IT Services,PANTHEON,11/07/2017,19.93
CORPORATE RESOURCES,IT Services,HOO*Hootsuite Media Inc.,11/07/2017,5.75
CORPORATE RESOURCES,Stationery,Amazon UK Marketplace,11/07/2017,20.24
CORPORATE RESOURCES,Stationery,AMAZON.CO.UK,11/07/2017,27.98
CORPORATE RESOURCES,Travel/Subsistence,TRAINLINE,11/07/2017,62.73
NEIGHBOURHOODS & GROWTH,Mail Services-Postage,POST OFFICE SELF SERVI,11/07/2017,1.75
NEIGHBOURHOODS & GROWTH,Travel/Subsistence,LUL TICKET MACHINE,11/07/2017,55.00
NEIGHBOURHOODS & GROWTH,Travel/Subsistence,LONDON & SOUTH EAS,11/07/2017,50.00
NEIGHBOURHOODS & GROWTH,Travel/Subsistence,WWW.SOUTHEASTERNRAILWA,11/07/2017,150.00
ADULTS & PUBLIC HEALTH,Catering Food & Drink,TESCO STORES 5999,12/07/2017,78.85
ADULTS & PUBLIC HEALTH,Catering Food & Drink,TESCO STORES 5999,12/07/2017,-5.90
ADULTS & PUBLIC HEALTH,Education-Arts/Crafts,COWLING AND WILCOX LTD,12/07/2017,74.30
ADULTS & PUBLIC HEALTH,Education-Other,Amazon Prime,12/07/2017,-7.99
CHILDREN'S SERVICES,Books/Publications/Resources,SAINSBURYS CASH,12/07/2017,150.00
CHILDREN'S SERVICES,Education-Supplies,IKEA LIMITED,12/07/2017,329.17
CHILDREN'S SERVICES,Financial Services-Banking,CASH ADVANCE FEE,12/07/2017,2.95
CHILDREN'S SERVICES,Travel/Subsistence,BRITISH A 1258759362546,12/07/2017,"1,330.34"
CHILDREN'S SERVICES,Travel/Subsistence,BRITISH A 1258759363074,12/07/2017,"1,775.85"
CORPORATE RESOURCES,Books/Publications/Resources,WWW.MILLMOLL.CO.UK,12/07/2017,144.59
NEIGHBOURHOODS & GROWTH,Travel/Subsistence,TFL ROAD CHARGE,12/07/2017,69.00
NEIGHBOURHOODS & GROWTH,Travel/Subsistence,LUL TICKET MACHINE,12/07/2017,120.00
CHILDREN'S SERVICES,Accommodation,HOLIDAY INN BOLTON,13/07/2017,122.00
CHILDREN'S SERVICES,Books/Publications/Resources,Amazon UK Retail,13/07/2017,20.00
CHILDREN'S SERVICES,Books/Publications/Resources,CORAM ACADEMY LTD,13/07/2017,176.00
CHILDREN'S SERVICES,Books/Publications/Resources,CASH ADVANCE FEE,13/07/2017,4.43
CHILDREN'S SERVICES,Catering Food & Drink,SAINSBURYS S/MKTS,13/07/2017,8.58
CHILDREN'S SERVICES,Catering Food & Drink,SAINSBURYS S/MKTS,13/07/2017,6.40
CHILDREN'S SERVICES,Catering Food & Drink,MARKS&SPENCER PLC SACA,13/07/2017,16.00
CHILDREN'S SERVICES,Catering Food & Drink,MARKS&SPENCER PLC SACA,13/07/2017,650.00
CHILDREN'S SERVICES,Catering Food & Drink,SAINSBURYS S/MKTS,13/07/2017,38.70
CHILDREN'S SERVICES,Domestic Goods-Other,POUNDLAND LTD,13/07/2017,3.05
CHILDREN'S SERVICES,Domestic Goods-Other,ARGOS,13/07/2017,29.97
CHILDREN'S SERVICES,Domestic Goods-Other,Amazon UK Marketplace,13/07/2017,8.08
CHILDREN'S SERVICES,Education-Library Books,AMAZON UK RETAIL AMAZON.C,13/07/2017,10.00
CHILDREN'S SERVICES,Education-Library Books,Amazon UK Marketplace,13/07/2017,13.93
CHILDREN'S SERVICES,Education-Library Books,Amazon UK Marketplace,13/07/2017,9.04
CHILDREN'S SERVICES,Education-Library Books,Amazon UK Marketplace,13/07/2017,4.90
CHILDREN'S SERVICES,Education-Library Books,"WWW.SHOP.NATTHEA,OR.UK",13/07/2017,72.97
CHILDREN'S SERVICES,Education-Library Books,W & G FOYLE LTD,13/07/2017,17.99
CHILDREN'S SERVICES,Education-Library Books,Amazon UK Marketplace,13/07/2017,20.35
CHILDREN'S SERVICES,Education-Other,www.hannecke.de,13/07/2017,"1,980.14"
CHILDREN'S SERVICES,Facilities-Advertising,WH SMITH,13/07/2017,3.29
CHILDREN'S SERVICES,Facilities-Advertising,WH SMITH,13/07/2017,55.71
CHILDREN'S SERVICES,Facilities-Storage,SAFESTORE LIMITED,13/07/2017,888.70
CHILDREN'S SERVICES,Financial Services,HM PASSPORT OFFICE,13/07/2017,46.00
CHILDREN'S SERVICES,Furniture-Domestic Furniture,DISCOUNT CARPETS S,13/07/2017,374.18
CHILDREN'S SERVICES,Furniture-Domestic Furniture,WWW.ARGOS.CO.UK,13/07/2017,206.93
CHILDREN'S SERVICES,Furniture-Domestic Furniture,CURRYS T/SALES,13/07/2017,599.97
CHILDREN'S SERVICES,Furniture-Domestic Furniture,ARGOS DIRECT,13/07/2017,"1,052.93"
CHILDREN'S SERVICES,Furniture-Domestic Furniture,ARGOS RETAIL GROUP,13/07/2017,800.92
CHILDREN'S SERVICES,Furniture-Domestic Furniture,Magnet,13/07/2017,276.01
CHILDREN'S SERVICES,Furniture-Domestic Furniture,Amazon UK Retail,13/07/2017,148.39
CHILDREN'S SERVICES,Furniture-Domestic Furniture,PAYPAL *SOLWAYBEDSL,13/07/2017,74.99
CHILDREN'S SERVICES,Furniture-Office Furniture,ARGOS DIRECT,13/07/2017,253.45
CHILDREN'S SERVICES,Legal Services-General Support,HM PASSPORT OFFICE,13/07/2017,72.50
CHILDREN'S SERVICES,Legal Services-General Support,HM PASSPORT OFFICE,13/07/2017,72.50
CHILDREN'S SERVICES,Mail Services-Postage,THE POST OFFICE,13/07/2017,15.80
CHILDREN'S SERVICES,Mail Services-Postage,POST OFFICE SELF SERVI,13/07/2017,8.04
CHILDREN'S SERVICES,Mail Services-Postage,THE POST OFFICE,13/07/2017,1.96
CHILDREN'S SERVICES,Mail Services-Postage,POST OFFICE SELF SERVI,13/07/2017,47.04
CHILDREN'S SERVICES,Public Transport,TFL OYST PHOTOCARD,13/07/2017,10.00
CHILDREN'S SERVICES,Sports Equipment,J D SPORTS 651,13/07/2017,20.00
CHILDREN'S SERVICES,Travel/Subsistence,OYSTER AUTOTOPUP,13/07/2017,80.00
CHILDREN'S SERVICES,Travel/Subsistence,OYSTER AUTOTOPUP,13/07/2017,40.00
CHILDREN'S SERVICES,Travel/Subsistence,OYSTER BUS AUTOTOP,13/07/2017,40.00
CHILDREN'S SERVICES,Travel/Subsistence,TRAINLINE,13/07/2017,22.49
CHILDREN'S SERVICES,Travel/Subsistence,OYSTER BUS AUTOTOP,13/07/2017,40.00
CHILDREN'S SERVICES,Travel/Subsistence,OYSTER AUTOTOPUP,13/07/2017,40.00
CHILDREN'S SERVICES,Travel/Subsistence,OYSTER BUS AUTOTOP,13/07/2017,40.00
CHILDREN'S SERVICES,Travel/Subsistence,TRAINLINE,13/07/2017,172.69
CHILDREN'S SERVICES,Travel/Subsistence,OYSTER AUTOTOPUP,13/07/2017,40.00
CHILDREN'S SERVICES,Travel/Subsistence,OYSTER AUTOTOPUP,13/07/2017,40.00
CHILDREN'S SERVICES,Travel/Subsistence,TRAINLINE,13/07/2017,31.77
CHILDREN'S SERVICES,Travel/Subsistence,OYSTER AUTOTOPUP,13/07/2017,40.00
CHILDREN'S SERVICES,Travel/Subsistence,OYSTER AUTOTOPUP,13/07/2017,40.00
CHILDREN'S SERVICES,Travel/Subsistence,OYSTER BUS AUTOTOP,13/07/2017,120.00
CHILDREN'S SERVICES,Travel/Subsistence,OYSTER AUTOTOPUP,13/07/2017,40.00
CHILDREN'S SERVICES,Travel/Subsistence,BRIXTONHILL EXPRESS,13/07/2017,150.00
CHILDREN'S SERVICES,Travel/Subsistence,OYSTER BUS AUTOTOP,13/07/2017,40.00
CHILDREN'S SERVICES,Travel/Subsistence,OYSTER BUS AUTOTOP,13/07/2017,80.00
CORPORATE RESOURCES,Accommodation,MIDLAND HOTEL,13/07/2017,233.33
CORPORATE RESOURCES,Taxi Fares,WWW.ADDISONLEE.COM,13/07/2017,30.65
NEIGHBOURHOODS & GROWTH,Books/Publications/Resources,H&M,13/07/2017,200.00
NEIGHBOURHOODS & GROWTH,Books/Publications/Resources,CITB,13/07/2017,30.00
NEIGHBOURHOODS & GROWTH,Building-Timber,SELCO TRADING CTR,13/07/2017,163.55
NEIGHBOURHOODS & GROWTH,Building-Timber,SCREWFIX,13/07/2017,16.66
NEIGHBOURHOODS & GROWTH,Use of Public Transport,OYSTER RENEW WEB,13/07/2017,33.00
NEIGHBOURHOODS & GROWTH,Use of Public Transport,OYSTER RENEW WEB,13/07/2017,25.00
NEIGHBOURHOODS & GROWTH,Use of Public Transport,OYSTER RENEW WEB,13/07/2017,-33.00
NEIGHBOURHOODS & GROWTH,Use of Public Transport,OYSTER RENEW WEB,13/07/2017,12.40
ADULTS & PUBLIC HEALTH,Catering Food & Drink,ICELAND,14/07/2017,108.08
NEIGHBOURHOODS & GROWTH,Building-Timber,ACRE LANE BUILDERS,14/07/2017,120.83
NEIGHBOURHOODS & GROWTH,Building-Timber,SCREWFIX,14/07/2017,32.71
NEIGHBOURHOODS & GROWTH (HRA),Domestic Goods-Other,AO RETAIL LIMITED,14/07/2017,"1,301.97"
CHILDREN'S SERVICES,Furniture-Soft Furnishings,Amazon UK Marketplace,15/07/2017,107.20
NEIGHBOURHOODS & GROWTH,Consultancy-Business,FORTRESS MASTER LOCKSMITH,15/07/2017,45.10
CHILDREN'S SERVICES,Catering Food & Drink,LIDL UK,16/07/2017,3.13
CHILDREN'S SERVICES,Travel/Subsistence,OYSTER RENEW WEB,16/07/2017,270.00
CHILDREN'S SERVICES,Consultancy-Business,WWW.WANDLE.COM,17/07/2017,"4,000.00"
CHILDREN'S SERVICES,Consultancy-Business,WWW.WANDLE.COM,17/07/2017,"1,235.35"
CHILDREN'S SERVICES,Travel/Subsistence,OYSTER RENEW WEB,17/07/2017,30.00
CHILDREN'S SERVICES,Use of Public Transport,VIRGIN TRAINS,17/07/2017,57.00
CORPORATE RESOURCES,IT Software,XMIND LTD.,17/07/2017,302.00
CORPORATE RESOURCES,Use of Public Transport,BRIXTON NEWS,17/07/2017,30.60
NEIGHBOURHOODS & GROWTH,Building-General,TP TRADING CO LTD,17/07/2017,59.07
CORPORATE RESOURCES,Catering Food & Drink,TESCO STORES-2143,18/07/2017,0.75
CORPORATE RESOURCES,Domestic Goods-Other,ARGOS RETAIL GROUP,18/07/2017,353.94
CORPORATE RESOURCES,Domestic Goods-Other,ARGOS RETAIL GROUP,18/07/2017,353.94
CORPORATE RESOURCES,Domestic Goods-Other,ARGOS DIRECT,18/07/2017,-353.94
CORPORATE RESOURCES,Domestic Goods-Other,WWW.ARGOS.CO.UK,18/07/2017,229.98
NEIGHBOURHOODS & GROWTH,Building-Timber,TP BALHAM HILL,18/07/2017,100.45
NEIGHBOURHOODS & GROWTH,Stationery,ARGOS LTD,18/07/2017,25.99
NEIGHBOURHOODS & GROWTH,Stationery,ARGOS,18/07/2017,38.98
NEIGHBOURHOODS & GROWTH,Use of Public Transport,LUL TICKET MACHINE,18/07/2017,236.20
CHILDREN'S SERVICES,Catering Food & Drink,LIDL UK,19/07/2017,34.10
CHILDREN'S SERVICES,Catering Food & Drink,ICELAND,19/07/2017,6.24
CHILDREN'S SERVICES,Domestic Goods-Other,WILKO RETAIL LIMIT,19/07/2017,10.50
CHILDREN'S SERVICES,Furniture-Office Furniture,ONLINE-ERGONOMICS.,19/07/2017,39.10
NEIGHBOURHOODS & GROWTH,Building-General,TP BALHAM HILL,19/07/2017,39.33
NEIGHBOURHOODS & GROWTH,Mail Services-Postage,POST OFFICE COUNTER,19/07/2017,6.45
NEIGHBOURHOODS & GROWTH (HRA),Telecommunications,TVLICENSING.CO.UK,19/07/2017,147.00
CHILDREN'S SERVICES,Domestic Goods-Other,CURRYS ONLINE,20/07/2017,378.33
CHILDREN'S SERVICES,Domestic Goods-Other,WWW.ARGOS.CO.UK,20/07/2017,126.94
CHILDREN'S SERVICES,Domestic Goods-Other,WWW.ARGOS.CO.UK,20/07/2017,159.98
CHILDREN'S SERVICES,Financial Services,HM PASSPORT OFFICE,20/07/2017,72.50
CHILDREN'S SERVICES,Financial Services,LAMBETH INTERNET PAYM,20/07/2017,32.53
CHILDREN'S SERVICES,Financial Services,HM PASSPORT OFFICE,20/07/2017,72.50
CHILDREN'S SERVICES,Financial Services,GRO HM PASSPORT OFFICE,20/07/2017,23.40
CHILDREN'S SERVICES,Financial Services-Grants,ALLPAY LTD,20/07/2017,700.00
CHILDREN'S SERVICES,Travel/Subsistence,OYSTER AUTOTOPUP,20/07/2017,40.00
CHILDREN'S SERVICES,Travel/Subsistence,TRAINLINE,20/07/2017,29.33
CHILDREN'S SERVICES,Travel/Subsistence,OYSTER BUS AUTOTOP,20/07/2017,40.00
CHILDREN'S SERVICES,Travel/Subsistence,TRAINLINE,20/07/2017,21.27
CHILDREN'S SERVICES,Travel/Subsistence,OYSTER RENEW WEB,20/07/2017,30.00
CHILDREN'S SERVICES,Travel/Subsistence,TRAINLINE,20/07/2017,208.64
CORPORATE RESOURCES,Domestic Goods-Other,Amazon UK Marketplace,20/07/2017,52.42
CORPORATE RESOURCES,Financial Services-Grants,LAG EDCTION SVC,20/07/2017,125.00
CORPORATE RESOURCES,Financial Services-Grants,INST OF LIC,20/07/2017,75.00
CORPORATE RESOURCES,Food/refreshment - meetings,SAINSBURYS S/MKTS,20/07/2017,6.00
CORPORATE RESOURCES,Travel/Subsistence,OYSTER AUTOTOPUP,20/07/2017,40.00
CORPORATE RESOURCES,Use of Public Transport,LUL TICKET MACHINE,20/07/2017,50.00
ADULTS & PUBLIC HEALTH,Catering Food & Drink,TESCO STORE 2764,21/07/2017,4.35
ADULTS & PUBLIC HEALTH,Catering Food & Drink,ICELAND,21/07/2017,104.45
ADULTS & PUBLIC HEALTH,Domestic Goods-Other,POUNDLAND LTD 1373,21/07/2017,5.84
ADULTS & PUBLIC HEALTH,Financial Services,SAINSBURYS CASH,21/07/2017,400.00
ADULTS & PUBLIC HEALTH,Financial Services,CASH ADVANCE FEE,21/07/2017,11.80
ADULTS & PUBLIC HEALTH,Travel/Subsistence,OYSTER BUS AUTOTOP,21/07/2017,20.00
CHILDREN'S SERVICES,Books/Publications/Resources,WWW.SOUTHEASTERNRAILWA,21/07/2017,81.50
CHILDREN'S SERVICES,Childcare Services,PAYPAL *HOLIPLAYLTD,21/07/2017,192.00
CHILDREN'S SERVICES,Legal Services-General Support,BINDMANS LLP,21/07/2017,"2,413.00"
CHILDREN'S SERVICES,Travel/Subsistence,OYSTER AUTOTOPUP,21/07/2017,40.00
CORPORATE RESOURCES,Facilities-Advertising,SAGE PUBLICATIONS UK,21/07/2017,107.94
CORPORATE RESOURCES,Financial Services,UKBA6103404576,21/07/2017,"3,699.00"
CORPORATE RESOURCES,Travel/Subsistence,LUL TICKET MACHINE,21/07/2017,25.00
NEIGHBOURHOODS & GROWTH,Building-Floors,TOPPS TILES BRIXTO,21/07/2017,32.50
ADULTS & PUBLIC HEALTH,Catering Equipment,Amazon UK Retail,22/07/2017,46.06
CHILDREN'S SERVICES,Domestic Goods-Other,ARGOS DIRECT,22/07/2017,246.92
ADULTS & PUBLIC HEALTH,Travel/Subsistence,OYSTER BUS AUTOTOP,23/07/2017,20.00
CHILDREN'S SERVICES,Education-Arts/Crafts,BAKER ROSS LTD,23/07/2017,74.91
ADULTS & PUBLIC HEALTH,Catering Food & Drink,TESCO STORES 5999,24/07/2017,84.05
ADULTS & PUBLIC HEALTH,Catering Food & Drink,TESCO STORE 2764,24/07/2017,179.92
ADULTS & PUBLIC HEALTH,Catering Food & Drink,TESCO STORES 5999,24/07/2017,96.83
ADULTS & PUBLIC HEALTH,Domestic Goods-Other,Amazon UK Marketplace,24/07/2017,28.99
ADULTS & PUBLIC HEALTH,Financial Services,NATWEST BANK /,24/07/2017,250.00
ADULTS & PUBLIC HEALTH,Financial Services,CASH ADVANCE FEE,24/07/2017,7.38
CHILDREN'S SERVICES,Catering Food & Drink,TESCO STORES 6791,25/07/2017,4.83
CHILDREN'S SERVICES,Domestic Goods-Other,ARGOS RETAIL GROUP,25/07/2017,89.99
CHILDREN'S SERVICES,Domestic Goods-Other,POUNDLAND LTD,25/07/2017,7.00
CHILDREN'S SERVICES,Education-Library Books,Amazon UK Marketplace,25/07/2017,14.95
CHILDREN'S SERVICES,Mail Services-Postage,THE POST OFFICE,25/07/2017,325.00
CORPORATE RESOURCES,Financial Services,LAND REGISTRY,25/07/2017,6.00
CORPORATE RESOURCES,Financial Services,LAND REGISTRY,25/07/2017,3.00
CORPORATE RESOURCES,Financial Services,LAND REGISTRY,25/07/2017,3.00
CORPORATE RESOURCES,Financial Services,LAND REGISTRY,25/07/2017,3.00
CORPORATE RESOURCES,Financial Services,LAND REGISTRY,25/07/2017,3.00
CORPORATE RESOURCES,Financial Services,LAND REGISTRY,25/07/2017,6.00
CORPORATE RESOURCES,Travel/Subsistence,LUL TICKET MACHINE,25/07/2017,50.00
ADULTS & PUBLIC HEALTH,Accommodation,HOTEL IBIS,26/07/2017,329.23
ADULTS & PUBLIC HEALTH,Conference Expenses,WWW.CIPFA.ORG.UK/PFMCO,26/07/2017,210.00
ADULTS & PUBLIC HEALTH,Conference Expenses,WWW.CIMAGLOBAL.COM,26/07/2017,55.00
ADULTS & PUBLIC HEALTH,Financial Services,NATWEST BANK /,26/07/2017,250.00
ADULTS & PUBLIC HEALTH,Financial Services,CASH ADVANCE FEE,26/07/2017,7.38
ADULTS & PUBLIC HEALTH,Healthcare Services,NHS SBS,26/07/2017,416.91
ADULTS & PUBLIC HEALTH,Travel/Subsistence,EUROSTAR INTERNET,26/07/2017,191.00
ADULTS & PUBLIC HEALTH,Travel/Subsistence,VIRGIN TRAINS,26/07/2017,52.00
CHILDREN'S SERVICES,Accommodation,TRAVELODGE GB0000,26/07/2017,412.50
CHILDREN'S SERVICES,Books/Publications/Resources,Amazon UK Marketplace,26/07/2017,29.97
CHILDREN'S SERVICES,Books/Publications/Resources,Amazon UK Marketplace,26/07/2017,24.99
CHILDREN'S SERVICES,Cemetery & Crematorium,ALBIN INTERNATIONA,26/07/2017,"2,400.00"
CHILDREN'S SERVICES,Childcare Services,LOVE2SHOP.CO.UK,26/07/2017,507.75
CHILDREN'S SERVICES,Domestic Goods-Other,AMAZON.CO.UK,26/07/2017,69.99
CHILDREN'S SERVICES,Education-Library Books,Amazon UK Marketplace,26/07/2017,7.31
CHILDREN'S SERVICES,Financial Services,HM PASSPORT,26/07/2017,128.00
CHILDREN'S SERVICES,Travel/Subsistence,OYSTER AUTOTOPUP,26/07/2017,40.00
CHILDREN'S SERVICES,Travel/Subsistence,OYSTER BUS AUTOTOP,26/07/2017,40.00
CHILDREN'S SERVICES,Travel/Subsistence,OYSTER AUTOTOPUP,26/07/2017,40.00
CHILDREN'S SERVICES,Travel/Subsistence,OYSTER BUS AUTOTOP,26/07/2017,40.00
NEIGHBOURHOODS & GROWTH,Building-Others,WWW.CENTRETANK.COM,26/07/2017,14.87
NEIGHBOURHOODS & GROWTH,Building-Tools,MACHINE MART WEB,26/07/2017,397.48
NEIGHBOURHOODS & GROWTH,Conference Expenses,SAN MARINO,26/07/2017,58.50
NEIGHBOURHOODS & GROWTH,Domestic Goods-Other,AMAZON.CO.UK,26/07/2017,15.32
NEIGHBOURHOODS & GROWTH,Domestic Goods-Other,Amazon UK Marketplace,26/07/2017,18.21
NEIGHBOURHOODS & GROWTH,Domestic Goods-Other,Amazon UK Marketplace,26/07/2017,39.15
NEIGHBOURHOODS & GROWTH,Domestic Goods-Other,LOCKFIELD SYSTEMS LTD,26/07/2017,30.16
NEIGHBOURHOODS & GROWTH,Horticultural-Other,WWW.COLLINSNETS.CO.UK,26/07/2017,128.50
NEIGHBOURHOODS & GROWTH,Travel/Subsistence,OYSTER AUTOTOPUP,26/07/2017,20.00
NEIGHBOURHOODS & GROWTH,Travel/Subsistence,SELFSERVE TICKET,26/07/2017,20.00
NEIGHBOURHOODS & GROWTH,Travel/Subsistence,OYSTER AUTOTOPUP,26/07/2017,20.00
NEIGHBOURHOODS & GROWTH,Travel/Subsistence,OYSTER AUTOTOPUP,26/07/2017,20.00
NEIGHBOURHOODS & GROWTH,Travel/Subsistence,OYSTER AUTOTOPUP,26/07/2017,20.00
NEIGHBOURHOODS & GROWTH,Travel/Subsistence,TFL ROAD CHARGE,26/07/2017,71.50
NEIGHBOURHOODS & GROWTH,Travel/Subsistence,TRAINLINE,26/07/2017,109.65
NEIGHBOURHOODS & GROWTH,Use of Public Transport,OYSTER RENEW WEB,26/07/2017,-12.40
NEIGHBOURHOODS & GROWTH,Use of Public Transport,OYSTER RENEW WEB,26/07/2017,-25.00
NEIGHBOURHOODS & GROWTH,Use of Public Transport,OYSTER RENEW WEB,26/07/2017,63.40
NEIGHBOURHOODS & GROWTH,Use of Public Transport,OYSTER RENEW WEB,26/07/2017,10.00
NEIGHBOURHOODS & GROWTH,Use of Public Transport,OYSTER RENEW WEB,26/07/2017,248.90
NEIGHBOURHOODS & GROWTH (HRA),Domestic Goods-Other,AMAZON.CO.UK,26/07/2017,17.69
NEIGHBOURHOODS & GROWTH (HRA),Facilities-Market Research,WWW.INSIDEHG.CO.UK R/T,26/07/2017,53.75
NEIGHBOURHOODS & GROWTH (HRA),Organised Activities,PROPERTY DEBT COLLECTI,26/07/2017,326.29
ADULTS & PUBLIC HEALTH,Legal Services-Other,HMCOURTS-SERVICE.G,27/07/2017,40.00
ADULTS & PUBLIC HEALTH,Legal Services-Other,HMCOURTS-SERVICE.G,27/07/2017,40.00
ADULTS & PUBLIC HEALTH,Legal Services-Other,HMCOURTS-SERVICE.G,27/07/2017,60.00
ADULTS & PUBLIC HEALTH,Legal Services-Other,HMCOURTS-SERVICE.G,27/07/2017,40.00
ADULTS & PUBLIC HEALTH,Legal Services-Other,HMCOURTS-SERVICE.G,27/07/2017,60.00
ADULTS & PUBLIC HEALTH,Travel/Subsistence,OYSTER AUTOTOPUP,27/07/2017,20.00
ADULTS & PUBLIC HEALTH,Travel/Subsistence,LONDON & SOUTH EAS,27/07/2017,62.50
CHILDREN'S SERVICES,Education-Library Books,Amazon UK Marketplace,27/07/2017,24.99
CHILDREN'S SERVICES,Education-Library Books,Amazon UK Marketplace,27/07/2017,5.47
CHILDREN'S SERVICES,Education-Library Books,Amazon UK Marketplace,27/07/2017,3.55
CHILDREN'S SERVICES,Education-Library Books,Amazon UK Marketplace,27/07/2017,22.79
CHILDREN'S SERVICES,Education-Library Books,Amazon UK Marketplace,27/07/2017,14.16
CHILDREN'S SERVICES,Education-Library Books,Amazon UK Retail,27/07/2017,5.18
CHILDREN'S SERVICES,Education-Library Books,Amazon UK Retail,27/07/2017,0.97
CORPORATE RESOURCES,Conference Expenses,THE KNOWLEDGE ACADEMY,27/07/2017,"1,112.53"
CORPORATE RESOURCES,Financial Services,GRO HM PASSPORT OFFICE,27/07/2017,9.25
CORPORATE RESOURCES,Financial Services,GRO HM PASSPORT OFFICE,27/07/2017,27.75
CORPORATE RESOURCES,Travel/Subsistence,TFL ROAD CHARGE,27/07/2017,11.50
CORPORATE RESOURCES,Use of Public Transport,MORDEN NEWS,27/07/2017,50.00
NEIGHBOURHOODS & GROWTH,Building-General,SCREWFIX,27/07/2017,56.06
NEIGHBOURHOODS & GROWTH,Building-General,SCREWFIX DIRECT,27/07/2017,173.30
NEIGHBOURHOODS & GROWTH,Stationery,ARGOS,27/07/2017,9.99
ADULTS & PUBLIC HEALTH,Catering Food & Drink,ICELAND,28/07/2017,88.07
ADULTS & PUBLIC HEALTH,Stationery,Amazon UK Marketplace,28/07/2017,11.80
CHILDREN'S SERVICES,Books/Publications/Resources,WH SMITH,28/07/2017,244.95
CHILDREN'S SERVICES,Education-Library Books,Amazon UK Retail,28/07/2017,22.45
CHILDREN'S SERVICES,Facilities-Advertising,WH SMITH,28/07/2017,240.85
CHILDREN'S SERVICES,Travel/Subsistence,OYSTER BUS AUTOTOP,28/07/2017,20.00
CORPORATE RESOURCES,Stationery,Amazon UK Marketplace,28/07/2017,14.90
NEIGHBOURHOODS & GROWTH,Mail Services-Postage,PAYPAL *ROYAL MAIL,29/07/2017,1.75
NEIGHBOURHOODS & GROWTH,Mail Services-Postage,PAYPAL *ROYAL MAIL,29/07/2017,17.50
NEIGHBOURHOODS & GROWTH,Mail Services-Postage,PAYPAL *ROYAL MAIL,29/07/2017,71.75
NEIGHBOURHOODS & GROWTH,Mail Services-Postage,WH SMITH,29/07/2017,4.31
CORPORATE RESOURCES,IT Consumables,MSFT *<E070047JQ4>,30/07/2017,19.71
CORPORATE RESOURCES,Use of Public Transport,OYSTER AUTOTOPUP,30/07/2017,20.00
CORPORATE RESOURCES,Use of Public Transport,OYSTER AUTOTOPUP,30/07/2017,40.00
CORPORATE RESOURCES,Use of Public Transport,OYSTER AUTOTOPUP,30/07/2017,40.00
CORPORATE RESOURCES,Use of Public Transport,OYSTER AUTOTOPUP,30/07/2017,20.00
CORPORATE RESOURCES,Use of Public Transport,OYSTER AUTOTOPUP,30/07/2017,20.00
CORPORATE RESOURCES,Use of Public Transport,OYSTER AUTOTOPUP,30/07/2017,20.00
CORPORATE RESOURCES,Use of Public Transport,OYSTER BUS AUTOTOP,30/07/2017,20.00
CORPORATE RESOURCES,Use of Public Transport,OYSTER AUTOTOPUP,30/07/2017,20.00
CHILDREN'S SERVICES,Books/Publications/Resources,SAINSBURYS CASH,31/07/2017,150.00
CHILDREN'S SERVICES,Travel/Subsistence,OYSTER RENEW WEB,31/07/2017,-30.00
CHILDREN'S SERVICES,Travel/Subsistence,DIRECTLINE-FLIGHTS,31/07/2017,124.71
NEIGHBOURHOODS & GROWTH,Books/Publications/Resources,Amazon UK Retail,31/07/2017,10.09
NEIGHBOURHOODS & GROWTH,Books/Publications/Resources,XL DISPLAYS LTD,31/07/2017,100.80
NEIGHBOURHOODS & GROWTH,Books/Publications/Resources,SURVEYMONKEY.COM,31/07/2017,264.00
NEIGHBOURHOODS & GROWTH,Building-Plumbing,FRASER & ELLIS LTD,31/07/2017,208.13
NEIGHBOURHOODS & GROWTH,Conference Expenses,EB *SMART PLANNING FOR,31/07/2017,178.80
NEIGHBOURHOODS & GROWTH,Conference Expenses,EVENTBRITE,31/07/2017,-178.80
NEIGHBOURHOODS & GROWTH,Stationery,CARTRIDGE SAVE,31/07/2017,73.18
CHILDREN'S SERVICES,Accommodation,MERCURE INVERNESS,01/08/2017,165.83
CHILDREN'S SERVICES,Accommodation,MERCURE INVERNESS,01/08/2017,199.00
CHILDREN'S SERVICES,Books/Publications/Resources,CASH ADVANCE FEE,01/08/2017,4.43
CHILDREN'S SERVICES,Books/Publications/Resources,PRIME STORE,01/08/2017,251.90
CHILDREN'S SERVICES,Domestic Goods-Other,ARGOS RETAIL GROUP,01/08/2017,"1,358.86"
CHILDREN'S SERVICES,Financial Services,GRO HM PASSPORT OFFICE,01/08/2017,27.20
CHILDREN'S SERVICES,Financial Services,GRO HM PASSPORT OFFICE,01/08/2017,246.90
CHILDREN'S SERVICES,Financial Services,GRO HM PASSPORT OFFICE,01/08/2017,-18.50
CHILDREN'S SERVICES,Furniture-Domestic Furniture,WORLDSTORES LTD,01/08/2017,424.98
CORPORATE RESOURCES,Facilities-Printing,AMAZON UK RETAIL AMAZON.C,01/08/2017,82.57
CORPORATE RESOURCES,Facilities-Printing,Amazon UK Retail,01/08/2017,53.29
CORPORATE RESOURCES,Facilities-Printing,Amazon UK Retail,01/08/2017,39.97
CORPORATE RESOURCES,Financial Services,GRO HM PASSPORT OFFICE,01/08/2017,-9.25
CORPORATE RESOURCES,Travel/Subsistence,ZIPCAR,01/08/2017,12.00
CORPORATE RESOURCES,Travel/Subsistence,ZIPCAR,01/08/2017,-12.00
CORPORATE RESOURCES,Travel/Subsistence,TFL ROAD CHARGE,01/08/2017,11.50
NEIGHBOURHOODS & GROWTH,Building-General,SCREWFIX,01/08/2017,133.47
NEIGHBOURHOODS & GROWTH,Building-Timber,B & Q 1346,01/08/2017,73.00
NEIGHBOURHOODS & GROWTH,Use of Public Transport,OYSTER RENEW WEB,01/08/2017,-10.00
CHILDREN'S SERVICES,Domestic Goods-Other,ARGOS RETAIL GROUP,02/08/2017,289.99
CHILDREN'S SERVICES,Financial Services,IPS DURHAM CONTACT CTR,02/08/2017,72.50
CHILDREN'S SERVICES,Travel/Subsistence,OYSTER AUTOTOPUP,02/08/2017,20.00
CORPORATE RESOURCES,Domestic Goods-Other,ARGOS RETAIL GROUP,02/08/2017,"1,092.93"
CORPORATE RESOURCES,Domestic Goods-Other,ARGOS DIRECT,02/08/2017,-659.99
CORPORATE RESOURCES,Domestic Goods-Other,ARGOS DIRECT,02/08/2017,-425.99
CORPORATE RESOURCES,Legal Services-Other,HMCOURTS-SERVICE.G,02/08/2017,"8,433.00"
CORPORATE RESOURCES,Travel/Subsistence,OYSTER AUTOTOPUP,02/08/2017,20.00
CORPORATE RESOURCES,Use of Public Transport,OYSTER AUTOTOPUP,02/08/2017,20.00
CORPORATE RESOURCES,Use of Public Transport,OYSTER AUTOTOPUP,02/08/2017,20.00
CORPORATE RESOURCES,Use of Public Transport,OYSTER AUTOTOPUP,02/08/2017,40.00
NEIGHBOURHOODS & GROWTH,Building-General,FORTRESS MASTER LOCKSMITH,02/08/2017,27.36
ADULTS & PUBLIC HEALTH,Catering Food & Drink,TESCO STORE 2143,03/08/2017,97.98
CHILDREN'S SERVICES,Domestic Goods-Other,ARGOS RETAIL GROUP,03/08/2017,"1,175.65"
CHILDREN'S SERVICES,Education-Library Books,Amazon UK Marketplace,03/08/2017,6.26
CHILDREN'S SERVICES,Education-Library Books,Amazon UK Marketplace,03/08/2017,2.81
CHILDREN'S SERVICES,Education-Library Books,Amazon UK Marketplace,03/08/2017,9.99
CHILDREN'S SERVICES,Education-Library Books,Amazon UK Retail,03/08/2017,4.32
CHILDREN'S SERVICES,Education-Library Books,Amazon UK Marketplace,03/08/2017,7.42
CHILDREN'S SERVICES,Education-Other,CASTLE WATER,03/08/2017,148.46
CHILDREN'S SERVICES,IT Software,SPORTS CITY LONDON,03/08/2017,915.30
CORPORATE RESOURCES,Facilities-Advertising,FACEBK ZQCEJCES62,03/08/2017,40.00
CORPORATE RESOURCES,Facilities-Market Research,NATIONBUILDER,03/08/2017,46.33
CORPORATE RESOURCES,Facilities-Printing,VISTAPR*VistaPrint.com,03/08/2017,"1,059.98"
CORPORATE RESOURCES,Facilities-Printing,VISTAPR*VistaPrint.com,03/08/2017,112.50
CORPORATE RESOURCES,Facilities-Retail,FAST KEY SERVICES LIMI,03/08/2017,11.02
CORPORATE RESOURCES,IT Services,123 REG R/T,03/08/2017,14.99
CORPORATE RESOURCES,IT Services,NATIONBUILDER,03/08/2017,170.94
CORPORATE RESOURCES,IT Services,AMAZON MKTPLACE PMTS,03/08/2017,397.01
NEIGHBOURHOODS & GROWTH,Building-Electrical,SCREWFIX DIRECT,03/08/2017,19.95
NEIGHBOURHOODS & GROWTH,Building-Timber,SCREWFIX,03/08/2017,12.64
ADULTS & PUBLIC HEALTH,Financial Services,ROYAL BANK UK /,04/08/2017,400.00
ADULTS & PUBLIC HEALTH,Financial Services,CASH ADVANCE FEE,04/08/2017,11.80
ADULTS & PUBLIC HEALTH,Travel/Subsistence,OYSTER BUS AUTOTOP,04/08/2017,20.00
CHILDREN'S SERVICES,Domestic Goods-Other,ARGOS RETAIL GROUP,04/08/2017,"2,103.77"
CHILDREN'S SERVICES,Education-Other,Amazon UK Marketplace,04/08/2017,19.93
CHILDREN'S SERVICES,Financial Services,HM PASSPORT OFFICE,04/08/2017,72.50
CORPORATE RESOURCES,Travel/Subsistence,OYSTER AUTOTOPUP,05/08/2017,20.00
ADULTS & PUBLIC HEALTH,Catering Food & Drink,ICELAND,07/08/2017,138.01
CHILDREN'S SERVICES,Catering Food & Drink,SAINSBURYS S/MKTS,07/08/2017,26.25
CHILDREN'S SERVICES,Domestic Goods-Other,ARGOS RETAIL GROUP,07/08/2017,"1,741.36"
CHILDREN'S SERVICES,Education-Arts/Crafts,BAKER ROSS LTD,07/08/2017,31.10
CHILDREN'S SERVICES,Professional & Advisory Services,COMPARE THE MAN AND VA,07/08/2017,227.01
NEIGHBOURHOODS & GROWTH (HRA),Domestic Goods-Other,WWW.ARGOS.CO.UK,07/08/2017,128.28
NEIGHBOURHOODS & GROWTH (HRA),Domestic Goods-Other,ARGOS DIRECT,07/08/2017,41.67
ADULTS & PUBLIC HEALTH,Financial Services,SAINSBURYS CASH,08/08/2017,250.00
ADULTS & PUBLIC HEALTH,Financial Services,CASH ADVANCE FEE,08/08/2017,7.38
CHILDREN'S SERVICES,Domestic Goods-Other,WWW.ARGOS.CO.UK,08/08/2017,501.93
CHILDREN'S SERVICES,Domestic Goods-Other,ARGOS LTD,08/08/2017,17.96
CHILDREN'S SERVICES,Facilities-Storage,FAST KEY SERVICES LIMI,08/08/2017,7.25
CHILDREN'S SERVICES,Travel/Subsistence,BRIXTONHILL EXPRESS,08/08/2017,50.00
CHILDREN'S SERVICES,Travel/Subsistence,BRIXTONHILL EXPRESS,08/08/2017,50.00
NEIGHBOURHOODS & GROWTH,Building-General,TP BALHAM HILL,08/08/2017,116.31
NEIGHBOURHOODS & GROWTH,Building-Timber,SCREWFIX,08/08/2017,16.08
NEIGHBOURHOODS & GROWTH,Stationery,Amazon UK Marketplace,08/08/2017,55.69
NEIGHBOURHOODS & GROWTH,Travel/Subsistence,OYSTER RENEW WEB,08/08/2017,33.00
NEIGHBOURHOODS & GROWTH (HRA),Building-General,HOWARD BROS. (CAMBERWE,08/08/2017,250.68
NEIGHBOURHOODS & GROWTH (HRA),Building-Timber,B & Q 1037,08/08/2017,115.12
NEIGHBOURHOODS & GROWTH (HRA),Building-Timber,M P MORAN & SONS- KENN,08/08/2017,91.75
NEIGHBOURHOODS & GROWTH (HRA),Catering Food & Drink,SAINSBURY'S S/MKT,08/08/2017,42.00
NEIGHBOURHOODS & GROWTH (HRA),Domestic Goods-Other,AO RETAIL LIMITED,08/08/2017,389.15
NEIGHBOURHOODS & GROWTH (HRA),Domestic Goods-Other,Amazon UK Marketplace,08/08/2017,34.79
NEIGHBOURHOODS & GROWTH (HRA),Domestic Goods-Other,AMAZON.CO.UK,08/08/2017,31.98
NEIGHBOURHOODS & GROWTH (HRA),Financial Services,LAMBETH INTERNET PAYM,08/08/2017,24.40
NEIGHBOURHOODS & GROWTH (HRA),Furniture-Office Furniture,POSTURITE (UK) LTD,08/08/2017,87.14
NEIGHBOURHOODS & GROWTH (HRA),Furniture-Office Furniture,POSTURITE (UK) LTD,08/08/2017,19.15
NEIGHBOURHOODS & GROWTH (HRA),Travel/Subsistence,NEW SOUTHERN RAILW,08/08/2017,50.00
NEIGHBOURHOODS & GROWTH (HRA),Travel/Subsistence,LUL TICKET MACHINE,08/08/2017,50.00
NEIGHBOURHOODS & GROWTH (HRA),Travel/Subsistence,NEW SOUTHERN RAILW,08/08/2017,50.00
NEIGHBOURHOODS & GROWTH (HRA),Travel/Subsistence,NEW SOUTHERN RAILW,08/08/2017,50.00
CHILDREN'S SERVICES,Books/Publications/Resources,Amazon UK Marketplace,09/08/2017,5.99
CHILDREN'S SERVICES,Domestic Goods-Other,WWW.ARGOS.CO.UK,09/08/2017,106.94
CHILDREN'S SERVICES,Domestic Goods-Other,WWW.ARGOS.CO.UK,09/08/2017,239.99
CHILDREN'S SERVICES,Domestic Goods-Other,Amazon UK Marketplace,09/08/2017,26.40
CHILDREN'S SERVICES,Education-Library Books,AMAZON.CO.UK,09/08/2017,11.16
CHILDREN'S SERVICES,Financial Services-Grants,BROMLEY COMMUNITY COUN,09/08/2017,125.00
CORPORATE RESOURCES,Domestic Goods-Other,ARGOS RETAIL GROUP,09/08/2017,239.99
CORPORATE RESOURCES,Domestic Goods-Other,ARGOS DIRECT,09/08/2017,-294.99
CORPORATE RESOURCES,IT Hardware,AMAZON.CO.UK,09/08/2017,120.00
CORPORATE RESOURCES,IT Hardware,Amazon UK Marketplace,09/08/2017,201.00
NEIGHBOURHOODS & GROWTH,Domestic Goods-Other,AMAZON.CO.UK,09/08/2017,13.52
NEIGHBOURHOODS & GROWTH,Horticultural-Other,DISCCYCLE/LEISUREOUT,09/08/2017,22.99
NEIGHBOURHOODS & GROWTH,Mail Services-Postage,POST OFFICE COUNTER,09/08/2017,72.60
NEIGHBOURHOODS & GROWTH,Travel/Subsistence,TFL ROAD CHARGE,09/08/2017,11.50
NEIGHBOURHOODS & GROWTH,Travel/Subsistence,TFL PENALTY CHARGE,09/08/2017,65.00
NEIGHBOURHOODS & GROWTH,Vehicle Maintenance,JETYRES,09/08/2017,50.00
ADULTS & PUBLIC HEALTH,Legal Services-Other,HMCOURTS-SERVICE.G,10/08/2017,20.00
ADULTS & PUBLIC HEALTH,Legal Services-Other,HMCOURTS-SERVICE.G,10/08/2017,80.00
ADULTS & PUBLIC HEALTH,Taxi Fares,WWW.ADDISONLEE.COM,10/08/2017,215.20
ADULTS & PUBLIC HEALTH,Travel/Subsistence,OYSTER AUTOTOPUP,10/08/2017,20.00
CHILDREN'S SERVICES,Books/Publications/Resources,Amazon UK Marketplace,10/08/2017,6.55
CHILDREN'S SERVICES,Catering Food & Drink,SAINSBURYS S/MKTS,10/08/2017,30.90
CHILDREN'S SERVICES,Catering Food & Drink,SAINSBURYS S/MKTS,10/08/2017,12.07
CHILDREN'S SERVICES,Catering Food & Drink,MARKS&SPENCER PLC SACA,10/08/2017,16.00
CHILDREN'S SERVICES,Catering Food & Drink,ICELAND,10/08/2017,5.25
CHILDREN'S SERVICES,Catering Food & Drink,JAMAICA SPICE BAKERY L,10/08/2017,9.10
CHILDREN'S SERVICES,Catering Food & Drink,SAINSBURYS S/MKTS,10/08/2017,4.45
CHILDREN'S SERVICES,Domestic Goods-Other,ARGOS,10/08/2017,39.99
CHILDREN'S SERVICES,Domestic Goods-Other,Amazon UK Marketplace,10/08/2017,35.95
CHILDREN'S SERVICES,Domestic Goods-Other,WWW.ARGOS.CO.UK,10/08/2017,134.98
CHILDREN'S SERVICES,Domestic Goods-Other,ARGOS DIRECT,10/08/2017,483.93
CHILDREN'S SERVICES,Domestic Goods-Other,WWW.ARGOS.CO.UK,10/08/2017,136.94
CHILDREN'S SERVICES,Education-Library Books,Amazon UK Marketplace,10/08/2017,399.00
CHILDREN'S SERVICES,Education-Library Books,Amazon UK Marketplace,10/08/2017,768.98
CHILDREN'S SERVICES,Education-Other,ET-FOUNDATION.COUK,10/08/2017,65.85
CHILDREN'S SERVICES,Education-Other,WWW.WESTMINSTER-BRIEFI,10/08/2017,390.00
CHILDREN'S SERVICES,Financial Services,LAMBETH INTERNET PAYM,10/08/2017,52.86
CHILDREN'S SERVICES,Financial Services-Grants,S R H E,10/08/2017,60.00
CHILDREN'S SERVICES,Stationery,POST SAFE LTD,10/08/2017,64.63
CHILDREN'S SERVICES,Taxi Fares,WWW.ADDISONLEE.COM,10/08/2017,18.50
CHILDREN'S SERVICES,Travel/Subsistence,OYSTER AUTOTOPUP,10/08/2017,20.00
CHILDREN'S SERVICES,Travel/Subsistence,OYSTER AUTOTOPUP,10/08/2017,20.00
CHILDREN'S SERVICES,Travel/Subsistence,OYSTER BUS AUTOTOP,10/08/2017,20.00
CHILDREN'S SERVICES,Travel/Subsistence,OYSTER AUTOTOPUP,10/08/2017,40.00
CHILDREN'S SERVICES,Travel/Subsistence,OYSTER AUTOTOPUP,10/08/2017,40.00
CHILDREN'S SERVICES,Travel/Subsistence,OYSTER AUTOTOPUP,10/08/2017,40.00
CHILDREN'S SERVICES,Travel/Subsistence,OYSTER BUS AUTOTOP,10/08/2017,20.00
CHILDREN'S SERVICES,Travel/Subsistence,OYSTER AUTOTOPUP,10/08/2017,40.00
CHILDREN'S SERVICES,Travel/Subsistence,OYSTER AUTOTOPUP,10/08/2017,40.00
CHILDREN'S SERVICES,Travel/Subsistence,TRAINLINE,10/08/2017,21.47
CHILDREN'S SERVICES,Travel/Subsistence,TRAINLINE,10/08/2017,65.99
CORPORATE RESOURCES,IT Services,PANTHEON SYSTEMS INC,10/08/2017,19.77
CORPORATE RESOURCES,IT Services,HOO*Hootsuite Media Inc.,10/08/2017,5.71
CORPORATE RESOURCES,Stationery,AMAZON UK RETAIL AMAZON.C,10/08/2017,25.98
CORPORATE RESOURCES,Travel/Subsistence,OYSTER AUTOTOPUP,10/08/2017,40.00
CORPORATE RESOURCES,Travel/Subsistence,OYSTER AUTOTOPUP,10/08/2017,40.00
NEIGHBOURHOODS & GROWTH,Cemetery & Crematorium,Amazon UK Marketplace,10/08/2017,1.75
NEIGHBOURHOODS & GROWTH,Cemetery & Crematorium,WWW.ARGOS.CO.UK,10/08/2017,10.94
NEIGHBOURHOODS & GROWTH,Cemetery & Crematorium,AMAZON UK RETAIL AMAZON.C,10/08/2017,12.74
NEIGHBOURHOODS & GROWTH,Cemetery & Crematorium,TRUSTFORD,10/08/2017,500.00
NEIGHBOURHOODS & GROWTH,Domestic Goods-Other,Amazon UK Marketplace,10/08/2017,14.99
NEIGHBOURHOODS & GROWTH,Travel/Subsistence,TFL ROAD CHARGE,10/08/2017,11.20
NEIGHBOURHOODS & GROWTH (HRA),Books/Publications/Resources,WWW.POSTURITE.CO.UK,10/08/2017,239.82
NEIGHBOURHOODS & GROWTH (HRA),Use of Public Transport,RAJAN NEWS,10/08/2017,55.00
ADULTS & PUBLIC HEALTH,Catering Food & Drink,ICELAND,11/08/2017,70.52
ADULTS & PUBLIC HEALTH,Financial Services,NATWEST BANK /,11/08/2017,250.00
ADULTS & PUBLIC HEALTH,Financial Services,CASH ADVANCE FEE,11/08/2017,7.38
CHILDREN'S SERVICES,Books/Publications/Resources,ASDA GEORGE COM LEEDS,11/08/2017,125.95
CHILDREN'S SERVICES,Books/Publications/Resources,PAYPAL *SCHOOLYARDL,11/08/2017,102.14
CHILDREN'S SERVICES,Books/Publications/Resources,TESCO DIRECT,11/08/2017,30.00
CHILDREN'S SERVICES,Books/Publications/Resources,Amazon UK Marketplace,11/08/2017,36.46
CHILDREN'S SERVICES,Books/Publications/Resources,WH SMITH,11/08/2017,320.25
CORPORATE RESOURCES,Travel/Subsistence,LUL TICKET MACHINE,11/08/2017,50.00
ADULTS & PUBLIC HEALTH,Travel/Subsistence,OYSTER BUS AUTOTOP,12/08/2017,20.00
CHILDREN'S SERVICES,Education-Library Books,Amazon UK Marketplace,12/08/2017,8.99
ADULTS & PUBLIC HEALTH,Stationery,Amazon UK Retail,13/08/2017,5.18
ADULTS & PUBLIC HEALTH,Travel/Subsistence,OYSTER BUS AUTOTOP,13/08/2017,20.00
CHILDREN'S SERVICES,Books/Publications/Resources,AMAZON.CO.UK,13/08/2017,20.72
CHILDREN'S SERVICES,Domestic Goods-Other,Amazon UK Marketplace,13/08/2017,21.97
ADULTS & PUBLIC HEALTH,Banquet & Catering,WWW.EVENTSUPPLIES.CO.U,14/08/2017,165.60
ADULTS & PUBLIC HEALTH,Catering Food & Drink,TESCO STORES 5999,14/08/2017,91.77
ADULTS & PUBLIC HEALTH,Domestic Goods-Other,Amazon UK Marketplace,14/08/2017,5.00
ADULTS & PUBLIC HEALTH,Domestic Goods-Other,Amazon UK Marketplace,14/08/2017,61.91
ADULTS & PUBLIC HEALTH,Education-Library Books,Amazon UK Marketplace,14/08/2017,46.08
ADULTS & PUBLIC HEALTH,Education-Library Books,Amazon UK Marketplace,14/08/2017,32.62
CHILDREN'S SERVICES,Books/Publications/Resources,AMAZON UK RETAIL AMAZON.C,14/08/2017,7.49
CHILDREN'S SERVICES,Books/Publications/Resources,Amazon UK Marketplace,14/08/2017,3.08
CHILDREN'S SERVICES,Books/Publications/Resources,Amazon UK Marketplace,14/08/2017,21.78
CORPORATE RESOURCES,Catering Food & Drink,MARKS&SPENCER PLC SACA,14/08/2017,2.00
CORPORATE RESOURCES,Catering Food & Drink,MARKS&SPENCER PLC SACA,14/08/2017,67.19
CORPORATE RESOURCES,Financial Services,UKBA7112731663,14/08/2017,"3,199.00"
CORPORATE RESOURCES,Food/refreshment - meetings,TESCO STORES 5342,14/08/2017,5.57
CORPORATE RESOURCES,Use of Public Transport,LUL TICKET MACHINE,14/08/2017,50.00
CORPORATE RESOURCES,Use of Public Transport,LUL TICKET MACHINE,14/08/2017,30.00
NEIGHBOURHOODS & GROWTH,Building-Timber,SCREWFIX,14/08/2017,3.18
NEIGHBOURHOODS & GROWTH,Legal Services-General Support,GARRAN LOCKERS LTD,14/08/2017,750.97
CORPORATE RESOURCES,Conference Expenses,THE NOTTINGHAM GATEWAY HO,15/08/2017,100.00
NEIGHBOURHOODS & GROWTH,Building-Timber,SCREWFIX,15/08/2017,24.13
NEIGHBOURHOODS & GROWTH,Consultancy-Business,FORTRESS MASTER LOCKSMITH,15/08/2017,8.75
ADULTS & PUBLIC HEALTH,Catering Food & Drink,TESCO STORE 2764,16/08/2017,150.22
CHILDREN'S SERVICES,Building-Floors,FLOOR FASHION,16/08/2017,"1,310.00"
CHILDREN'S SERVICES,Domestic Goods-Other,ARGOS,16/08/2017,19.99
CHILDREN'S SERVICES,Domestic Goods-Other,POUNDLAND LTD,16/08/2017,37.00
CHILDREN'S SERVICES,Domestic Goods-Other,WWW.ARGOS.CO.UK,16/08/2017,132.90
CHILDREN'S SERVICES,Facilities-Storage,SAFESTORE LIMITED,16/08/2017,937.65
CHILDREN'S SERVICES,Furniture-Domestic Furniture,IKEA ONLINE,16/08/2017,"1,163.00"
CHILDREN'S SERVICES,Mail Services-Postage,THE POST OFFICE,16/08/2017,330.00
CHILDREN'S SERVICES,Travel/Subsistence,OYSTER RENEW WEB,16/08/2017,240.00
CHILDREN'S SERVICES,Travel/Subsistence,OYSTER RENEW WEB,16/08/2017,20.00
CHILDREN'S SERVICES,Travel/Subsistence,OYSTER RENEW WEB,16/08/2017,-20.00
CHILDREN'S SERVICES,Travel/Subsistence,OYSTER RENEW WEB,16/08/2017,-120.00
CHILDREN'S SERVICES,Travel/Subsistence,OYSTER RENEW WEB,16/08/2017,-30.00
CHILDREN'S SERVICES,Travel/Subsistence,OYSTER BUS AUTOTOP,16/08/2017,20.00
CHILDREN'S SERVICES,Travel/Subsistence,OYSTER AUTOTOPUP,16/08/2017,20.00
CHILDREN'S SERVICES,Travel/Subsistence,OYSTER RENEW WEB,16/08/2017,30.00
CHILDREN'S SERVICES (SCH),Professional & Advisory Services,STARK SOFTWARE INTERNATIO,16/08/2017,"1,384.03"
CORPORATE RESOURCES,Professional & Advisory Services,STARK SOFTWARE INTERNATIO,16/08/2017,220.70
NEIGHBOURHOODS & GROWTH,Education-Other,EB *DELIVERING MORE HO,16/08/2017,149.00
NEIGHBOURHOODS & GROWTH,Professional & Advisory Services,STARK SOFTWARE INTERNATIO,16/08/2017,58.44
NEIGHBOURHOODS & GROWTH (HRA),Building-General,HOWARD BROS. (CAMBERWE,16/08/2017,138.97
NEIGHBOURHOODS & GROWTH (HRA),Consultancy-Business,WP-WWW.OYEZFORMSLINK.C,16/08/2017,189.34
NEIGHBOURHOODS & GROWTH (HRA),Domestic Goods-Other,AO RETAIL LIMITED,16/08/2017,815.30
NEIGHBOURHOODS & GROWTH (HRA),Furniture-Other,AO RETAIL LIMITED,16/08/2017,-51.96
NEIGHBOURHOODS & GROWTH (HRA),Professional & Advisory Services,STARK SOFTWARE INTERNATIO,16/08/2017,87.13
NEIGHBOURHOODS & GROWTH (HRA),Taxi Fares,WATERLOO CAR SERVI,16/08/2017,7.80
ADULTS & PUBLIC HEALTH,Catering Food & Drink,ICELAND,17/08/2017,146.11
CHILDREN'S SERVICES,Accommodation,HAMPTON INNS,17/08/2017,74.00
CHILDREN'S SERVICES,Domestic Goods-Other,CURRYS ONLINE,17/08/2017,-57.50
CHILDREN'S SERVICES,Domestic Goods-Other,Amazon UK Marketplace,17/08/2017,207.98
CHILDREN'S SERVICES,Domestic Goods-Other,CURRYS ONLINE,17/08/2017,332.50
CHILDREN'S SERVICES,Domestic Goods-Other,ARGOS RETAIL GROUP,17/08/2017,124.99
CHILDREN'S SERVICES,Education-Library Books,AMAZON.CO.UK,17/08/2017,3.29
CHILDREN'S SERVICES,Education-Library Books,AMAZON UK RETAIL AMAZON.C,17/08/2017,8.99
CHILDREN'S SERVICES,Education-Library Books,Amazon UK Marketplace,17/08/2017,3.23
CHILDREN'S SERVICES,Education-Library Books,Amazon UK Marketplace,17/08/2017,37.09
CHILDREN'S SERVICES,Education-Library Books,Amazon UK Retail,17/08/2017,7.99
CHILDREN'S SERVICES,Education-Library Books,Amazon UK Marketplace,17/08/2017,65.91
CHILDREN'S SERVICES,Education-Library Books,AMAZON.CO.UK,17/08/2017,10.51
CHILDREN'S SERVICES,Education-Library Books,Amazon UK Marketplace,17/08/2017,10.66
CHILDREN'S SERVICES,Education-Library Books,Amazon UK Marketplace,17/08/2017,11.78
CHILDREN'S SERVICES,Education-Other,Amazon Prime,17/08/2017,79.00
CHILDREN'S SERVICES,Financial Services-Grants,ALLPAY LTD,17/08/2017,378.00
CHILDREN'S SERVICES,Furniture-Domestic Furniture,IKEA ONLINE,17/08/2017,669.00
CHILDREN'S SERVICES,Furniture-Other,Amazon UK Retail,17/08/2017,141.66
CHILDREN'S SERVICES,Travel/Subsistence,OYSTER RENEW WEB,17/08/2017,30.00
CHILDREN'S SERVICES,Travel/Subsistence,EASYJET ESKR711,17/08/2017,126.71
CHILDREN'S SERVICES,Travel/Subsistence,FLIGHT CENTRE,17/08/2017,"2,416.38"
CORPORATE RESOURCES,Catering Equipment,AMAZON.CO.UK,17/08/2017,14.58
CORPORATE RESOURCES,Catering Food & Drink,AMAZON.CO.UK,17/08/2017,33.69
CORPORATE RESOURCES,Catering Food & Drink,Amazon UK Marketplace,17/08/2017,9.79
NEIGHBOURHOODS & GROWTH,Travel/Subsistence,TFL ROAD CHARGE,17/08/2017,9.20
CHILDREN'S SERVICES,Use of Public Transport,TRAINLINE,18/08/2017,71.65
CORPORATE RESOURCES,Catering Equipment,AMAZON.CO.UK,18/08/2017,19.99
NEIGHBOURHOODS & GROWTH,Building-General,SCREWFIX DIRECT,18/08/2017,70.78
NEIGHBOURHOODS & GROWTH,Financial Services,HSBC/M&S BRIXTON,18/08/2017,50.00
NEIGHBOURHOODS & GROWTH,Financial Services,CASH ADVANCE FEE,18/08/2017,2.95
NEIGHBOURHOODS & GROWTH (HRA),Catering Food & Drink,TESCO STORES 5999,19/08/2017,69.37
NEIGHBOURHOODS & GROWTH (HRA),Catering Food & Drink,TESCO STORE 3539,19/08/2017,-69.37
NEIGHBOURHOODS & GROWTH (HRA),Catering Food & Drink,TESCO STORES 5999,19/08/2017,79.45
CHILDREN'S SERVICES,Travel/Subsistence,OYSTER RENEW WEB,20/08/2017,30.00
CHILDREN'S SERVICES,Travel/Subsistence,OYSTER BUS AUTOTOP,20/08/2017,20.00
CHILDREN'S SERVICES,Travel/Subsistence,OYSTER BUS AUTOTOP,20/08/2017,20.00
CHILDREN'S SERVICES,Travel/Subsistence,OYSTER RENEW WEB,20/08/2017,20.00
CHILDREN'S SERVICES,Travel/Subsistence,OYSTER BUS AUTOTOP,20/08/2017,20.00
CHILDREN'S SERVICES,Travel/Subsistence,OYSTER AUTOTOPUP,20/08/2017,20.00
CHILDREN'S SERVICES,Travel/Subsistence,OYSTER RENEW WEB,20/08/2017,20.00
CHILDREN'S SERVICES,Travel/Subsistence,OYSTER AUTOTOPUP,20/08/2017,20.00
CHILDREN'S SERVICES,Travel/Subsistence,OYSTER BUS AUTOTOP,20/08/2017,20.00
CHILDREN'S SERVICES,Travel/Subsistence,OYSTER BUS AUTOTOP,20/08/2017,20.00
CORPORATE RESOURCES,Use of Public Transport,OYSTER BUS AUTOTOP,20/08/2017,20.00
CHILDREN'S SERVICES,Accommodation,FOUR SEASONS HOTEL,21/08/2017,75.00
CHILDREN'S SERVICES,Accommodation,PREMIER INN44533265,21/08/2017,94.16
CHILDREN'S SERVICES,Books/Publications/Resources,SAINSBURYS CASH,21/08/2017,160.00
CHILDREN'S SERVICES,Domestic Goods-Other,PC WORLD ONLINE,21/08/2017,249.99
CHILDREN'S SERVICES,Domestic Goods-Other,ARGOS RETAIL GROUP,21/08/2017,699.17
CHILDREN'S SERVICES,Facilities-Printing,Amazon UK Retail,21/08/2017,74.79
CHILDREN'S SERVICES,Financial Services,DVLA DRIVER ONLINE,21/08/2017,34.00
CHILDREN'S SERVICES,Furniture-Domestic Furniture,IKEA ONLINE,21/08/2017,773.25
CHILDREN'S SERVICES,Travel/Subsistence,DIRECTLINE-FLIGHTS,21/08/2017,153.50
CHILDREN'S SERVICES,Books/Publications/Resources,CASH ADVANCE FEE,22/08/2017,4.72
CHILDREN'S SERVICES,Financial Services,GRO HM PASSPORT OFFICE,22/08/2017,9.25
CORPORATE RESOURCES,Use of Public Transport,GWR WEBSALES,22/08/2017,140.80
NEIGHBOURHOODS & GROWTH,Building-Timber,G & G'S TIMBER &,22/08/2017,458.04
NEIGHBOURHOODS & GROWTH,Catering Food & Drink,SAINSBURY'S SMKT,22/08/2017,100.00
NEIGHBOURHOODS & GROWTH,Domestic Goods-Other,AMMERHURST LTD,22/08/2017,25.09
NEIGHBOURHOODS & GROWTH,Education-Other,PAYPAL *PAYHERE LTD,22/08/2017,160.00
NEIGHBOURHOODS & GROWTH,Facilities-Advertising,BRIX CENTRAL STOP,22/08/2017,50.00
NEIGHBOURHOODS & GROWTH,IT Services,123-REG.CO.UK,22/08/2017,254.98
NEIGHBOURHOODS & GROWTH,Travel/Subsistence,TFL ROAD CHARGE,22/08/2017,9.20
NEIGHBOURHOODS & GROWTH,Travel/Subsistence,TFL ROAD CHARGE,22/08/2017,11.20
CHILDREN'S SERVICES,Catering Food & Drink,SAINSBURYS S/MKTS,23/08/2017,13.10
CHILDREN'S SERVICES,Catering Food & Drink,SAN MARINO,23/08/2017,9.00
CHILDREN'S SERVICES,Domestic Goods-Other,ARGOS RETAIL GROUP,23/08/2017,70.93
CHILDREN'S SERVICES,Financial Services,GRO HM PASSPORT OFFICE,23/08/2017,18.50
CHILDREN'S SERVICES,Travel/Subsistence,OYSTER BUS AUTOTOP,23/08/2017,80.00
CHILDREN'S SERVICES,Travel/Subsistence,OYSTER AUTOTOPUP,23/08/2017,40.00
CHILDREN'S SERVICES,Travel/Subsistence,TRAINLINE,23/08/2017,21.47
CHILDREN'S SERVICES,Travel/Subsistence,OYSTER AUTOTOPUP,23/08/2017,40.00
CHILDREN'S SERVICES,Travel/Subsistence,OYSTER AUTOTOPUP,23/08/2017,40.00
CHILDREN'S SERVICES,Travel/Subsistence,OYSTER BUS AUTOTOP,23/08/2017,40.00
CORPORATE RESOURCES,Books/Publications/Resources,PAYPAL *LGCOMMS,23/08/2017,250.00
CORPORATE RESOURCES,Conference Expenses,PAYPAL *LGCOMMS,23/08/2017,700.00
CORPORATE RESOURCES,Financial Services,UKBA7116517351,23/08/2017,"3,199.00"
NEIGHBOURHOODS & GROWTH,Building-Electrical,SCREWFIX DIRECT,23/08/2017,29.16
NEIGHBOURHOODS & GROWTH,Building-Timber,PREMIER SHEDS,23/08/2017,100.00
NEIGHBOURHOODS & GROWTH,Catering Food & Drink,TESCO STORES 5122,23/08/2017,4.00
ADULTS & PUBLIC HEALTH,Education-Other,Amazon UK Marketplace,24/08/2017,4.48
ADULTS & PUBLIC HEALTH,Financial Services,ROYAL BANK UK /,24/08/2017,400.00
ADULTS & PUBLIC HEALTH,Financial Services,CASH ADVANCE FEE,24/08/2017,11.80
ADULTS & PUBLIC HEALTH,Travel/Subsistence,OYSTER BUS AUTOTOP,24/08/2017,20.00
CHILDREN'S SERVICES,Accommodation,BINDMANS LLP,24/08/2017,504.00
CHILDREN'S SERVICES,Books/Publications/Resources,Amazon UK Retail,24/08/2017,7.76
CHILDREN'S SERVICES,Building-Floors,BUDGET CARPETS 1,24/08/2017,455.00
CHILDREN'S SERVICES,Domestic Goods-Other,WWW.ARGOS.CO.UK,24/08/2017,199.99
CHILDREN'S SERVICES,Domestic Goods-Other,WWW.JOHNLEWIS.COM,24/08/2017,265.00
CHILDREN'S SERVICES,Education-Library Books,Amazon UK Retail,24/08/2017,9.73
CHILDREN'S SERVICES,Education-Library Books,Amazon UK Retail,24/08/2017,17.65
CHILDREN'S SERVICES,Education-Library Books,AMAZON.CO.UK,24/08/2017,25.91
CHILDREN'S SERVICES,Taxi Fares,CLOCKCARS.CO.UK,24/08/2017,35.00
CHILDREN'S SERVICES,Travel/Subsistence,OYSTER RENEW WEB,24/08/2017,-30.00
CHILDREN'S SERVICES,Travel/Subsistence,OYSTER AUTOTOPUP,24/08/2017,20.00
CHILDREN'S SERVICES,Travel/Subsistence,OYSTER RENEW WEB,24/08/2017,-20.00
CHILDREN'S SERVICES,Travel/Subsistence,OYSTER BUS AUTOTOP,24/08/2017,20.00
CORPORATE RESOURCES,Books/Publications/Resources,WP-HEMMING GROUP L,24/08/2017,140.00
CORPORATE RESOURCES,Books/Publications/Resources,WWW.INSIDEHOUSING.CO.U,24/08/2017,140.83
CORPORATE RESOURCES,IT Services,123 REG R/T,24/08/2017,14.99
CORPORATE RESOURCES,Travel/Subsistence,TRAINLINE,24/08/2017,143.36
NEIGHBOURHOODS & GROWTH,Horticultural-Other,HALFORDS ON LINE,24/08/2017,55.20
ADULTS & PUBLIC HEALTH,Taxi Fares,DUB CUSTOMS,25/08/2017,141.25
CHILDREN'S SERVICES,Education-Other,NSPCC PUBLICATIONS,25/08/2017,4.00
CHILDREN'S SERVICES,Education-Supplies,LEGO,25/08/2017,76.19
CHILDREN'S SERVICES,Organised Activities,Amazon UK Marketplace,25/08/2017,294.00
CORPORATE RESOURCES,Financial Services,LAND REGISTRY,25/08/2017,3.00
CORPORATE RESOURCES,Financial Services,LAND REGISTRY,25/08/2017,6.00
CORPORATE RESOURCES,Financial Services,LAND REGISTRY,25/08/2017,3.00
CORPORATE RESOURCES,Financial Services,LAND REGISTRY,25/08/2017,3.00
CORPORATE RESOURCES,Financial Services,LAND REGISTRY,25/08/2017,3.00
CORPORATE RESOURCES,Financial Services,LAND REGISTRY,25/08/2017,3.00
CORPORATE RESOURCES,Financial Services,LAND REGISTRY,25/08/2017,3.00
ADULTS & PUBLIC HEALTH,Education-Other,Amazon UK Marketplace,26/08/2017,8.98
CHILDREN'S SERVICES,Domestic Goods-Other,WWW.JOHNLEWIS.COM,26/08/2017,-265.00
ADULTS & PUBLIC HEALTH,Catering Food & Drink,ICELAND,29/08/2017,104.38
CHILDREN'S SERVICES,Building-General,WWW.ABBEYACCESS.CO,29/08/2017,54.99
CHILDREN'S SERVICES,Building-Tools,WWW PROJECTORSHOP24 CO UK,29/08/2017,232.69
CHILDREN'S SERVICES,Catering Food & Drink,SAINSBURY'S SMKT,29/08/2017,7.59
CHILDREN'S SERVICES,Catering Food & Drink,SAINSBURYS S/MKTS,29/08/2017,3.35
CHILDREN'S SERVICES,Catering Food & Drink,ASDA STORES LTD TOTTE,29/08/2017,23.25
CHILDREN'S SERVICES,Domestic Goods-Other,POUNDLAND LTD,29/08/2017,5.15
CHILDREN'S SERVICES,Education-Library Books,Amazon UK Marketplace,29/08/2017,147.00
CHILDREN'S SERVICES,Sports Equipment,J D SPORTS 271,29/08/2017,17.00
CHILDREN'S SERVICES,Travel/Subsistence,OYSTER AUTOTOPUP,29/08/2017,80.00
CHILDREN'S SERVICES,Travel/Subsistence,TRAINLINE,29/08/2017,111.18
CHILDREN'S SERVICES,Travel/Subsistence,OYSTER BUS AUTOTOP,29/08/2017,40.00
CORPORATE RESOURCES,Travel/Subsistence,OYSTER RENEW WEB,29/08/2017,40.00
CORPORATE RESOURCES,Travel/Subsistence,OYSTER AUTOTOPUP,29/08/2017,20.00
CORPORATE RESOURCES,Travel/Subsistence,OYSTER RENEW WEB,29/08/2017,90.00
NEIGHBOURHOODS & GROWTH (HRA),Books/Publications/Resources,WWW.STUPRINT.COM,29/08/2017,656.00
CHILDREN'S SERVICES,Education-Library Books,Amazon UK Marketplace,30/08/2017,5.54
CHILDREN'S SERVICES,Education-Other,PAYPAL *GOODTHINGSF,30/08/2017,240.00
CHILDREN'S SERVICES,Travel/Subsistence,ZIPCAR,30/08/2017,165.40
NEIGHBOURHOODS & GROWTH,Books/Publications/Resources,H&M,30/08/2017,70.00
NEIGHBOURHOODS & GROWTH,Telecommunications,GIFFGAFF.COM,30/08/2017,10.00
NEIGHBOURHOODS & GROWTH,Travel/Subsistence,TFL ROAD CHARGE,30/08/2017,11.50
NEIGHBOURHOODS & GROWTH,Travel/Subsistence,TFL ROAD CHARGE,30/08/2017,57.50
NEIGHBOURHOODS & GROWTH,Use of Public Transport,OYSTER RENEW WEB,30/08/2017,45.00
NEIGHBOURHOODS & GROWTH,Use of Public Transport,LUL TICKET MACHINE,30/08/2017,10.00
NEIGHBOURHOODS & GROWTH,Use of Public Transport,OYSTER RENEW WEB,30/08/2017,33.00
ADULTS & PUBLIC HEALTH,Catering Food & Drink,TESCO STORES 5999,31/08/2017,80.96
ADULTS & PUBLIC HEALTH,Catering Food & Drink,TESCO STORES 5999,31/08/2017,77.01
ADULTS & PUBLIC HEALTH,Catering Food & Drink,TESCO STORES 5999,31/08/2017,-2.70
ADULTS & PUBLIC HEALTH,Catering Food & Drink,TESCO STORE 2821,31/08/2017,20.40
ADULTS & PUBLIC HEALTH,Domestic Goods-Other,WWW.LOCKDOCTOR.BIZ,31/08/2017,8.22
ADULTS & PUBLIC HEALTH,IT Software,CITY LIT,31/08/2017,103.00
CHILDREN'S SERVICES,Books/Publications/Resources,ASDA GEORGE COM LEEDS,31/08/2017,20.45
CHILDREN'S SERVICES,Books/Publications/Resources,APT CLOTHING,31/08/2017,61.98
CHILDREN'S SERVICES,Books/Publications/Resources,MORLEYS,31/08/2017,9.65
CHILDREN'S SERVICES,Books/Publications/Resources,Amazon UK Retail,31/08/2017,9.17
CORPORATE RESOURCES,Legal Services-Other,HMCOURTS-SERVICE.G,31/08/2017,"6,168.00"
NEIGHBOURHOODS & GROWTH,Building-Timber,SCREWFIX,31/08/2017,27.33
ADULTS & PUBLIC HEALTH,Catering Food & Drink,ICELAND,01/09/2017,109.37
ADULTS & PUBLIC HEALTH,Financial Services,SAINSBURYS CASH,01/09/2017,200.00
ADULTS & PUBLIC HEALTH,Financial Services,CASH ADVANCE FEE,01/09/2017,5.90
ADULTS & PUBLIC HEALTH,Travel/Subsistence,OYSTER BUS AUTOTOP,01/09/2017,20.00
ADULTS & PUBLIC HEALTH,Travel/Subsistence,OYSTER BUS AUTOTOP,01/09/2017,20.00
CHILDREN'S SERVICES,Books/Publications/Resources,ASDA GEORGE COM LEEDS,01/09/2017,73.50
CHILDREN'S SERVICES,Books/Publications/Resources,WEARABOUTS NORWOOD,01/09/2017,53.94
CHILDREN'S SERVICES,Books/Publications/Resources,AMZ*Amazon.co.uk,01/09/2017,-7.76
CHILDREN'S SERVICES,Books/Publications/Resources,Amazon UK Marketplace,01/09/2017,18.76
CHILDREN'S SERVICES,Education-Library Books,Amazon UK Marketplace,01/09/2017,6.13
NEIGHBOURHOODS & GROWTH,Books/Publications/Resources,BLS*DAPULSE LABS LTD,01/09/2017,734.40
NEIGHBOURHOODS & GROWTH,Use of Public Transport,OYSTER RENEW WEB,01/09/2017,-45.00
NEIGHBOURHOODS & GROWTH,Accommodation,PARK HOTELS MANAGEMENT,02/09/2017,103.29
NEIGHBOURHOODS & GROWTH,Accommodation,DOUBLETREE,02/09/2017,73.33
NEIGHBOURHOODS & GROWTH,Conference Expenses,CARPLUS BIKEPLUS,02/09/2017,160.00
NEIGHBOURHOODS & GROWTH,Travel/Subsistence,OYSTER AUTOTOPUP,02/09/2017,20.00
NEIGHBOURHOODS & GROWTH,Travel/Subsistence,OYSTER AUTOTOPUP,02/09/2017,20.00
NEIGHBOURHOODS & GROWTH,Travel/Subsistence,OYSTER AUTOTOPUP,02/09/2017,20.00
NEIGHBOURHOODS & GROWTH,Travel/Subsistence,GREATER ANGLIA TRAINS,02/09/2017,44.10
NEIGHBOURHOODS & GROWTH,Travel/Subsistence,OYSTER AUTOTOPUP,02/09/2017,20.00
NEIGHBOURHOODS & GROWTH,Travel/Subsistence,OYSTER BUS AUTOTOP,02/09/2017,20.00
NEIGHBOURHOODS & GROWTH,Travel/Subsistence,OYSTER BUS AUTOTOP,02/09/2017,20.00
NEIGHBOURHOODS & GROWTH,Travel/Subsistence,OYSTER AUTOTOPUP,02/09/2017,20.00
ADULTS & PUBLIC HEALTH,Catering Food & Drink,TESCO STORES 5999,04/09/2017,110.68
CHILDREN'S SERVICES,Books/Publications/Resources,LOVE2SHOP.CO.UK,04/09/2017,34.00
CHILDREN'S SERVICES,Books/Publications/Resources,WWW.VOUCHEREXPRESS.CO.,04/09/2017,45.00
CHILDREN'S SERVICES,Books/Publications/Resources,JD SPORTS INTERNET,04/09/2017,65.00
CHILDREN'S SERVICES,Facilities-Printing,Amazon UK Retail,04/09/2017,480.00
CORPORATE RESOURCES,Taxi Fares,WWW.ADDISONLEE.COM,04/09/2017,61.22
CHILDREN'S SERVICES,Travel/Subsistence,OYSTER RENEW WEB,05/09/2017,50.00
CHILDREN'S SERVICES,Travel/Subsistence,OYSTER AUTOTOPUP,05/09/2017,20.00
CHILDREN'S SERVICES,Travel/Subsistence,OYSTER AUTOTOPUP,05/09/2017,20.00
CHILDREN'S SERVICES,Travel/Subsistence,OYSTER RENEW WEB,05/09/2017,30.00
CHILDREN'S SERVICES,Travel/Subsistence,OYSTER RENEW WEB,05/09/2017,-20.00
CORPORATE RESOURCES,Use of Public Transport,LUL TICKET MACHINE,05/09/2017,30.00
CORPORATE RESOURCES,Use of Public Transport,LUL TICKET MACHINE,05/09/2017,30.00
NEIGHBOURHOODS & GROWTH,Building-General,SCREWFIX,05/09/2017,9.25
NEIGHBOURHOODS & GROWTH,Building-General,SCREWFIX,05/09/2017,99.98
ADULTS & PUBLIC HEALTH,Financial Services,SAINSBURYS CASH,06/09/2017,250.00
ADULTS & PUBLIC HEALTH,Financial Services,CASH ADVANCE FEE,06/09/2017,7.38
CORPORATE RESOURCES,Conference Expenses,EBOOKERS.COM,06/09/2017,118.15
CORPORATE RESOURCES,Travel/Subsistence,OYSTER AUTOTOPUP,06/09/2017,20.00
CORPORATE RESOURCES,Use of Public Transport,EAST MIDLANDS TRAINS,06/09/2017,69.50
NEIGHBOURHOODS & GROWTH,Travel/Subsistence,LUL TICKET MACHINE,06/09/2017,60.00
BALANCE SHEET,Personal,CURRYS ONLINE,07/09/2017,-0.50
CHILDREN'S SERVICES,Building-Floors,CARPETRIGHT,07/09/2017,484.31
CHILDREN'S SERVICES,Building-Timber,WICKES BUILDING,07/09/2017,74.98
CHILDREN'S SERVICES,Catering Food & Drink,TESCO STORE 2143,07/09/2017,105.80
CHILDREN'S SERVICES,Catering Food & Drink,ICELAND,07/09/2017,7.80
CHILDREN'S SERVICES,Catering Food & Drink,JAMAICA SPICE BAKERY L,07/09/2017,14.30
CHILDREN'S SERVICES,Catering Food & Drink,SAINSBURYS S/MKTS,07/09/2017,3.30
CHILDREN'S SERVICES,Catering Food & Drink,SUMUP *F&FLONDONLTD,07/09/2017,500.00
CHILDREN'S SERVICES,Catering Food & Drink,SAINSBURY'S S/MKTS,07/09/2017,80.20
CHILDREN'S SERVICES,Catering Food & Drink,SAINSBURY'S S/MKTS,07/09/2017,4.85
CHILDREN'S SERVICES,Conference Expenses,TRAINLINE,07/09/2017,93.28
CHILDREN'S SERVICES,Domestic Goods-Other,TESCO DIRECT,07/09/2017,199.00
CHILDREN'S SERVICES,Domestic Goods-Other,CURRYS ONLINE,07/09/2017,444.17
CHILDREN'S SERVICES,Domestic Goods-Other,WWW.JOHNLEWIS.COM,07/09/2017,0.00
CHILDREN'S SERVICES,Education-Library Books,AMAZON.CO.UK,07/09/2017,147.00
CHILDREN'S SERVICES,Education-Library Books,Amazon UK Marketplace,07/09/2017,147.00
CHILDREN'S SERVICES,Education-Other,EB *BIC BREAKFAST SEPT,07/09/2017,13.15
CHILDREN'S SERVICES,Facilities-Storage,KATOR STORAGE LTD,07/09/2017,122.84
CHILDREN'S SERVICES,Facilities-Storage,BIG YELLOW BOX & LOCK,07/09/2017,122.84
CHILDREN'S SERVICES,Facilities-Storage,KATOR STORAGE LTD,07/09/2017,121.24
CHILDREN'S SERVICES,Facilities-Storage,SAFESTORE LIMITED,07/09/2017,937.65
CHILDREN'S SERVICES,Financial Services-Grants,CORAM ACADEMY LTD,07/09/2017,33.95
CHILDREN'S SERVICES,Financial Services-Grants,MISSING PERSONS,07/09/2017,60.00
CHILDREN'S SERVICES,Furniture-Domestic Furniture,IKEA ONLINE,07/09/2017,567.95
CHILDREN'S SERVICES,Furniture-Domestic Furniture,IKEA ONLINE,07/09/2017,160.00
CHILDREN'S SERVICES,Furniture-Domestic Furniture,IKEA ONLINE,07/09/2017,345.00
CHILDREN'S SERVICES,Travel/Subsistence,OYSTER BUS AUTOTOP,07/09/2017,40.00
CHILDREN'S SERVICES,Travel/Subsistence,OYSTER RENEW WEB,07/09/2017,40.00
CHILDREN'S SERVICES,Travel/Subsistence,OYSTER BUS AUTOTOP,07/09/2017,20.00
CHILDREN'S SERVICES,Travel/Subsistence,OYSTER RENEW WEB,07/09/2017,30.00
CHILDREN'S SERVICES,Travel/Subsistence,OYSTER RENEW WEB,07/09/2017,-20.00
CHILDREN'S SERVICES,Travel/Subsistence,OYSTER AUTOTOPUP,07/09/2017,80.00
CHILDREN'S SERVICES,Travel/Subsistence,OYSTER RENEW WEB,07/09/2017,20.00
CHILDREN'S SERVICES,Travel/Subsistence,OYSTER RENEW WEB,07/09/2017,40.00
CHILDREN'S SERVICES,Travel/Subsistence,OYSTER AUTOTOPUP,07/09/2017,40.00
CHILDREN'S SERVICES,Travel/Subsistence,OYSTER AUTOSETTLE,07/09/2017,20.00
CHILDREN'S SERVICES,Travel/Subsistence,OYSTER BUS AUTOTOP,07/09/2017,40.00
CHILDREN'S SERVICES,Travel/Subsistence,OYSTER RENEW WEB,07/09/2017,20.00
CHILDREN'S SERVICES,Travel/Subsistence,TRAINLINE,07/09/2017,90.98
CHILDREN'S SERVICES,Works-Construction,DISCOUNT CARPETS S,07/09/2017,493.05
CORPORATE RESOURCES,Domestic Goods-Other,CANFORD AUDIO PLC,07/09/2017,56.00
CORPORATE RESOURCES,Education-Library Books,Amazon UK Marketplace,07/09/2017,32.59
CORPORATE RESOURCES,Travel/Subsistence,OYSTER AUTOTOPUP,07/09/2017,20.00
ADULTS & PUBLIC HEALTH,Catering Food & Drink,ICELAND,08/09/2017,96.42
ADULTS & PUBLIC HEALTH,Financial Services,NATWEST BANK /,08/09/2017,250.00
ADULTS & PUBLIC HEALTH,Financial Services,CASH ADVANCE FEE,08/09/2017,7.38
CHILDREN'S SERVICES,Education-Other,BIOPAC (UK) LTD,08/09/2017,84.95
CHILDREN'S SERVICES,Financial Services-Insurance,WWW.AVIVA.CO.UK,08/09/2017,407.37
CORPORATE RESOURCES,Conference Expenses,DRAGON TAXIS NEWPORT,08/09/2017,10.50
NEIGHBOURHOODS & GROWTH,Building-General,FORTRESS MASTER LOCKSMITH,08/09/2017,21.00
NEIGHBOURHOODS & GROWTH,Building-General,TARA FABRICATIONS,08/09/2017,64.00
CHILDREN'S SERVICES,Catering Food & Drink,SAINSBURY'S S/MKTS,09/09/2017,14.20
CHILDREN'S SERVICES,Education-Other,Amazon UK Marketplace,10/09/2017,81.86
CORPORATE RESOURCES,Books/Publications/Resources,Amazon UK Marketplace,10/09/2017,35.15
CORPORATE RESOURCES,Facilities-Advertising,FACEBK THWWUCNR62,10/09/2017,8.33
CORPORATE RESOURCES,Facilities-Advertising,FACEBK UHWWUCNR62,10/09/2017,11.67
CORPORATE RESOURCES,IT Services,NATIONBUILDER,10/09/2017,174.96
CORPORATE RESOURCES,IT Services,NATIONBUILDER,10/09/2017,47.14
CORPORATE RESOURCES,IT Services,PANTHEON SYSTEMS INC,10/09/2017,19.93
CORPORATE RESOURCES,IT Services,123-REG.CO.UK,10/09/2017,31.96
CORPORATE RESOURCES,IT Services,HOO*Hootsuite Media Inc.,10/09/2017,5.65
CORPORATE RESOURCES,Legal Services-General Support,GARDEN COURT CHAMBERS,10/09/2017,30.00
CORPORATE RESOURCES,Legal Services-Other,MARSTON GROUP LTD,10/09/2017,"3,612.00"
CORPORATE RESOURCES,Stationery,AMAZON.CO.UK,10/09/2017,21.74
CORPORATE RESOURCES,Travel/Subsistence,LUL TICKET MACHINE,10/09/2017,50.00
CORPORATE RESOURCES,Travel/Subsistence,LUL TICKET MACHINE,10/09/2017,50.00
CORPORATE RESOURCES,Travel/Subsistence,OYSTER AUTOTOPUP,10/09/2017,20.00
CORPORATE RESOURCES,Travel/Subsistence,OYSTER AUTOTOPUP,10/09/2017,40.00
CHILDREN'S SERVICES,Books/Publications/Resources,WWW.ARGOS.CO.UK,11/09/2017,270.89
CHILDREN'S SERVICES,Books/Publications/Resources,PRIME STORE,11/09/2017,342.65
CHILDREN'S SERVICES,Domestic Goods-Other,WWW.ARGOS.CO.UK,11/09/2017,239.99
CHILDREN'S SERVICES,Organised Activities,ICELAND,11/09/2017,16.71
CHILDREN'S SERVICES,Organised Activities,SAINSBURY'S,11/09/2017,5.40
CHILDREN'S SERVICES,Professional subscriptions,ASSOCIATION FOR COACHING,11/09/2017,140.00
CORPORATE RESOURCES,Use of Public Transport,LUL TICKET MACHINE,11/09/2017,30.00
NEIGHBOURHOODS & GROWTH,Building-Timber,TP BALHAM HILL,11/09/2017,16.38
NEIGHBOURHOODS & GROWTH,Building-Timber,TP TRADING CO LTD,11/09/2017,23.61
ADULTS & PUBLIC HEALTH,Accommodation,HOTEL IBIS,12/09/2017,417.71
ADULTS & PUBLIC HEALTH,Conference Expenses,WWW.THEKNOWLEDGEACADEM,12/09/2017,540.00
ADULTS & PUBLIC HEALTH,Healthcare Services,CCI CREDIT MANAGEMENT,12/09/2017,"2,789.70"
ADULTS & PUBLIC HEALTH,Healthcare Services,PATHWAY ANALYITCS,12/09/2017,600.00
ADULTS & PUBLIC HEALTH,Healthcare Services,WESTON AREA HEALTH TRU,12/09/2017,139.61
ADULTS & PUBLIC HEALTH,Healthcare Services,NHS SBS,12/09/2017,31.89
ADULTS & PUBLIC HEALTH,IT Software,SMARTSHEET,12/09/2017,84.00
ADULTS & PUBLIC HEALTH,Travel/Subsistence,VIRGIN TRAINS,12/09/2017,20.00
CHILDREN'S SERVICES,Books/Publications/Resources,SAINSBURYS CASH,12/09/2017,150.00
CHILDREN'S SERVICES,Books/Publications/Resources,ICELAND,12/09/2017,5.00
CHILDREN'S SERVICES,Books/Publications/Resources,POUNDLAND,12/09/2017,29.00
CHILDREN'S SERVICES,Travel/Subsistence,BRIXTONHILL EXPRESS,12/09/2017,50.00
CHILDREN'S SERVICES,Travel/Subsistence,BRIXTONHILL EXPRESS,12/09/2017,50.00
CHILDREN'S SERVICES,Travel/Subsistence,EXPRESS NEWS,12/09/2017,50.00
NEIGHBOURHOODS & GROWTH,Use of Public Transport,TRAINLINE,12/09/2017,35.45
ADULTS & PUBLIC HEALTH,Catering Food & Drink,TESCO STORE 2764,13/09/2017,198.97
ADULTS & PUBLIC HEALTH,Domestic Goods-Other,TESCO STORE 2764,13/09/2017,32.91
ADULTS & PUBLIC HEALTH,Financial Services,PO VAUXHALL STREET 5179,13/09/2017,400.00
ADULTS & PUBLIC HEALTH,Financial Services,CASH ADVANCE FEE,13/09/2017,11.80
ADULTS & PUBLIC HEALTH,Travel/Subsistence,OYSTER BUS AUTOTOP,13/09/2017,20.00
CHILDREN'S SERVICES,Books/Publications/Resources,CASH ADVANCE FEE,13/09/2017,4.43
CHILDREN'S SERVICES,Education-Library Books,Amazon UK Marketplace,13/09/2017,18.07
CHILDREN'S SERVICES,Education-Library Books,Amazon UK Marketplace,13/09/2017,27.84
CHILDREN'S SERVICES,Education-Library Books,Amazon UK Marketplace,13/09/2017,2.81
CHILDREN'S SERVICES,Education-Library Books,AMAZON.CO.UK,13/09/2017,3.29
CHILDREN'S SERVICES,Education-Library Books,Amazon UK Marketplace,13/09/2017,3.20
CHILDREN'S SERVICES,Education-Library Books,Amazon UK Retail,13/09/2017,13.99
CHILDREN'S SERVICES,Education-Library Books,Amazon UK Marketplace,13/09/2017,8.30
CHILDREN'S SERVICES,Education-Library Books,Amazon UK Retail,13/09/2017,6.39
CHILDREN'S SERVICES,Education-Library Books,Amazon UK Marketplace,13/09/2017,2.80
CHILDREN'S SERVICES,Education-Library Books,Amazon UK Retail,13/09/2017,6.29
CHILDREN'S SERVICES,Education-Library Books,Amazon UK Marketplace,13/09/2017,35.34
CHILDREN'S SERVICES,Education-Library Books,Amazon UK Marketplace,13/09/2017,15.55
CHILDREN'S SERVICES,Education-Library Books,AMAZON UK RETAIL AMAZON.C,13/09/2017,20.95
CHILDREN'S SERVICES,Education-Library Books,Amazon UK Marketplace,13/09/2017,37.16
CHILDREN'S SERVICES,Travel/Subsistence,OYSTER RENEW WEB,13/09/2017,15.00
CHILDREN'S SERVICES,Travel/Subsistence,OYSTER BUS AUTOTOP,13/09/2017,20.00
CHILDREN'S SERVICES,Travel/Subsistence,OYSTER BUS AUTOTOP,13/09/2017,20.00
CHILDREN'S SERVICES,Travel/Subsistence,OYSTER AUTOTOPUP,13/09/2017,20.00
CHILDREN'S SERVICES,Travel/Subsistence,OYSTER AUTOTOPUP,13/09/2017,20.00
CORPORATE RESOURCES,Catering Food & Drink,SAINSBURYS,13/09/2017,2.75
CORPORATE RESOURCES,Stationery,POUNDLAND LTD 1203,13/09/2017,17.00
CORPORATE RESOURCES,Stationery,TESCO STORES 2764,13/09/2017,5.80
CORPORATE RESOURCES,Stationery,AMZ*TOP-MAX Lighting,13/09/2017,-15.00
CORPORATE RESOURCES,Stationery,Amazon UK Marketplace,13/09/2017,321.08
CORPORATE RESOURCES,Stationery,Amazon UK Marketplace,13/09/2017,231.42
CORPORATE RESOURCES,Stationery,POUNDLAND LTD 1203,13/09/2017,6.00
CORPORATE RESOURCES,Stationery,TESCO STORES 2764,13/09/2017,6.20
CORPORATE RESOURCES,Stationery,AMAZON.CO.UK,13/09/2017,175.30
CORPORATE RESOURCES,Travel/Subsistence,TRAINLINE,13/09/2017,46.72
CORPORATE RESOURCES,Travel/Subsistence,OYSTER ISSUE WEB,13/09/2017,100.00
NEIGHBOURHOODS & GROWTH,Building-Plumbing,FRASER & ELLIS LTD,13/09/2017,86.73
NEIGHBOURHOODS & GROWTH,Building-Plumbing,FRASER & ELLIS LTD,13/09/2017,86.73
NEIGHBOURHOODS & GROWTH,Building-Timber,SCREWFIX,13/09/2017,36.24
NEIGHBOURHOODS & GROWTH,Vehicle Maintenance,1ST HIRE,13/09/2017,28.80
ADULTS & PUBLIC HEALTH,Catering Food & Drink,ICELAND,14/09/2017,95.72
ADULTS & PUBLIC HEALTH,Travel/Subsistence,OYSTER BUS AUTOTOP,14/09/2017,20.00
ADULTS & PUBLIC HEALTH,Travel/Subsistence,OYSTER BUS AUTOTOP,14/09/2017,20.00
CHILDREN'S SERVICES,Clothing-Children/Adults,WWW.DIRECTBOOT.CO.UK,14/09/2017,49.47
CHILDREN'S SERVICES,Domestic Goods-Other,WWW.JOHNLEWIS.COM,14/09/2017,629.00
CHILDREN'S SERVICES,Education-Other,HARLOW COLLEGE,14/09/2017,50.00
CHILDREN'S SERVICES,Travel/Subsistence,OYSTER RENEW WEB,14/09/2017,20.00
CHILDREN'S SERVICES,Travel/Subsistence,OYSTER RENEW WEB,14/09/2017,20.00
CHILDREN'S SERVICES,Travel/Subsistence,OYSTER RENEW WEB,14/09/2017,20.00
CHILDREN'S SERVICES,Travel/Subsistence,MITCHAM BELLE COAC,14/09/2017,"1,845.00"
CHILDREN'S SERVICES,Travel/Subsistence,ON THE GO,14/09/2017,20.50
CHILDREN'S SERVICES,Travel/Subsistence,OYSTER RENEW WEB,14/09/2017,20.00
CORPORATE RESOURCES,Education-Other,WWW.QA.COM,14/09/2017,"1,004.90"
NEIGHBOURHOODS & GROWTH,Building-General,SELCO TRADING CTR,14/09/2017,190.25
ADULTS & PUBLIC HEALTH,Financial Services,NATWEST BANK /,15/09/2017,140.00
ADULTS & PUBLIC HEALTH,Financial Services,CASH ADVANCE FEE,15/09/2017,5.90
ADULTS & PUBLIC HEALTH,Legal Services-Other,HMCOURTS-SERVICE.G,15/09/2017,40.00
ADULTS & PUBLIC HEALTH,Legal Services-Other,HMCOURTS-SERVICE.G,15/09/2017,40.00
ADULTS & PUBLIC HEALTH,Legal Services-Other,HMCOURTS-SERVICE.G,15/09/2017,40.00
ADULTS & PUBLIC HEALTH,Legal Services-Other,HMCOURTS-SERVICE.G,15/09/2017,40.00
ADULTS & PUBLIC HEALTH,Legal Services-Other,HMCOURTS-SERVICE.G,15/09/2017,20.00
ADULTS & PUBLIC HEALTH,Legal Services-Other,HMCOURTS-SERVICE.G,15/09/2017,60.00
ADULTS & PUBLIC HEALTH,Legal Services-Other,HMCOURTS-SERVICE.G,15/09/2017,60.00
ADULTS & PUBLIC HEALTH,Legal Services-Other,HMCOURTS-SERVICE.G,15/09/2017,225.00
ADULTS & PUBLIC HEALTH,Travel/Subsistence,OYSTER AUTOTOPUP,15/09/2017,20.00
ADULTS & PUBLIC HEALTH,Travel/Subsistence,OYSTER BUS AUTOTOP,15/09/2017,20.00
ADULTS & PUBLIC HEALTH,Travel/Subsistence,LONDON & SOUTH EAS,15/09/2017,28.50
CHILDREN'S SERVICES,Catering Food & Drink,JS ONLINE GROCERY,15/09/2017,22.75
CHILDREN'S SERVICES,Education-Other,INFORMATION TODAY,15/09/2017,450.00
CHILDREN'S SERVICES,Education-Other,LBL NOT PRESENT,15/09/2017,21.35
CHILDREN'S SERVICES,Financial Services,LAMBETH INTERNET PAYM,15/09/2017,21.35
CHILDREN'S SERVICES,Professional & Advisory Services,COMPARE THE MAN AND VA,15/09/2017,192.10
CHILDREN'S SERVICES,Professional & Advisory Services,COMPARE THE MAN AND VA,15/09/2017,180.00
CORPORATE RESOURCES,Travel/Subsistence,OYSTER AUTOTOPUP,15/09/2017,20.00
CORPORATE RESOURCES,Travel/Subsistence,TFL ROAD CHARGE,15/09/2017,11.50
CORPORATE RESOURCES,Travel/Subsistence,OYSTER AUTOTOPUP,15/09/2017,20.00
CORPORATE RESOURCES,Travel/Subsistence,OYSTER AUTOTOPUP,15/09/2017,40.00
CORPORATE RESOURCES,Travel/Subsistence,OYSTER BUS AUTOTOP,15/09/2017,40.00
CORPORATE RESOURCES,Use of Public Transport,OYSTER AUTOTOPUP,15/09/2017,20.00
CORPORATE RESOURCES,Use of Public Transport,OYSTER AUTOTOPUP,15/09/2017,20.00
CORPORATE RESOURCES,Use of Public Transport,OYSTER AUTOTOPUP,15/09/2017,20.00
CORPORATE RESOURCES,Use of Public Transport,OYSTER AUTOTOPUP,15/09/2017,20.00
NEIGHBOURHOODS & GROWTH,Legal Services-Other,LAND REGISTRY,15/09/2017,6.00
NEIGHBOURHOODS & GROWTH (HRA),Building-Tools,TESCO STORE 2764,15/09/2017,10.25
ADULTS & PUBLIC HEALTH,Travel/Subsistence,OYSTER BUS AUTOTOP,16/09/2017,20.00
CHILDREN'S SERVICES,Education-Other,ARGOS LTD,16/09/2017,91.96
CHILDREN'S SERVICES,Education-Library Books,Amazon UK Retail,18/09/2017,48.82
CHILDREN'S SERVICES,Professional & Advisory Services,EURO PRESENTATIONS LTD,18/09/2017,348.00
NEIGHBOURHOODS & GROWTH,Vehicle Maintenance,1ST HIRE,18/09/2017,54.24
NEIGHBOURHOODS & GROWTH,Works-Construction,LBL NOT PRESENT,18/09/2017,198.22
NEIGHBOURHOODS & GROWTH (HRA),Clothing-Uniforms,WWW.HIVIS.NET,18/09/2017,185.33
NEIGHBOURHOODS & GROWTH (HRA),Stationery,WWW.THESUPERMARKETONLINE,18/09/2017,76.17
CHILDREN'S SERVICES,Public Transport,BRIXTONHILL EXPRESS,19/09/2017,150.00
CHILDREN'S SERVICES,Public Transport,BRIXTONHILL EXPRESS,19/09/2017,70.00
CHILDREN'S SERVICES,Travel/Subsistence,OYSTER AUTOTOPUP,19/09/2017,40.00
CHILDREN'S SERVICES,Travel/Subsistence,OYSTER BUS AUTOTOP,19/09/2017,20.00
CHILDREN'S SERVICES,Travel/Subsistence,OYSTER BUS AUTOTOP,19/09/2017,20.00
CHILDREN'S SERVICES,Travel/Subsistence,OYSTER RENEW WEB,19/09/2017,10.00
CHILDREN'S SERVICES,Travel/Subsistence,OYSTER RENEW WEB,19/09/2017,25.00
CORPORATE RESOURCES,Legal Services-Other,MARSTON GROUP LTD,19/09/2017,"-3,612.00"
CORPORATE RESOURCES,Use of Public Transport,LUL TICKET MACHINE,19/09/2017,50.00
NEIGHBOURHOODS & GROWTH,Building-General,FORTRESS MASTER LOCKSMITH,19/09/2017,37.81
ADULTS & PUBLIC HEALTH,Travel/Subsistence,OYSTER BUS AUTOTOP,20/09/2017,20.00
CHILDREN'S SERVICES,Facilities-Market Research,Amazon Prime,20/09/2017,7.99
CHILDREN'S SERVICES,Facilities-Market Research,Amazon Prime,20/09/2017,7.99
CHILDREN'S SERVICES,Facilities-Market Research,Amazon Prime,20/09/2017,-7.99
CHILDREN'S SERVICES,Travel/Subsistence,EASYJET ESVHWP8,20/09/2017,115.10
CORPORATE RESOURCES,Financial Services,LAND REGISTRY,20/09/2017,3.00
CORPORATE RESOURCES,Financial Services,LAND REGISTRY,20/09/2017,3.00
CORPORATE RESOURCES,Financial Services,LAND REGISTRY,20/09/2017,3.00
CORPORATE RESOURCES,Financial Services,LAND REGISTRY,20/09/2017,3.00
CORPORATE RESOURCES,Financial Services,LAND REGISTRY,20/09/2017,3.00
CORPORATE RESOURCES,Use of Public Transport,LUL TICKET MACHINE,20/09/2017,20.00
NEIGHBOURHOODS & GROWTH,Conference Expenses,WWW.WESTMINSTER-BRIEFI,20/09/2017,245.00
NEIGHBOURHOODS & GROWTH (HRA),Use of Public Transport,NEW SOUTHERN RAILW,20/09/2017,50.00
NEIGHBOURHOODS & GROWTH (HRA),Use of Public Transport,SAINSBURY'S S/MKT,20/09/2017,100.00
ADULTS & PUBLIC HEALTH,Catering Food & Drink,TESCO STORES 5999,21/09/2017,72.27
ADULTS & PUBLIC HEALTH,Domestic Goods-Other,WWW.ARGOS.CO.UK,21/09/2017,186.94
ADULTS & PUBLIC HEALTH,Education-Library Books,Amazon UK Marketplace,21/09/2017,134.91
ADULTS & PUBLIC HEALTH,Education-Library Books,Amazon UK Marketplace,21/09/2017,6.84
ADULTS & PUBLIC HEALTH,Education-Musical Instruments,WWW.JOHNPACKER.CO.UK M,21/09/2017,100.25
ADULTS & PUBLIC HEALTH,Education-Other,PAYPAL *TACPAC,21/09/2017,39.00
ADULTS & PUBLIC HEALTH,Facilities-Printing,Amazon UK Retail,21/09/2017,15.88
ADULTS & PUBLIC HEALTH,IT Software,CITY LIT,21/09/2017,121.00
CHILDREN'S SERVICES,Catering Food & Drink,SUMUP *F&FLONDONLTD,21/09/2017,500.00
CHILDREN'S SERVICES,Clothing-Children/Adults,N200 LIMITED,21/09/2017,129.00
CHILDREN'S SERVICES,Domestic Goods-Other,POUNDLAND LTD,21/09/2017,31.30
CHILDREN'S SERVICES,Domestic Goods-Other,CURRYS ONLINE,21/09/2017,0.00
CHILDREN'S SERVICES,Domestic Goods-Other,WWW.JOHNLEWIS.COM,21/09/2017,524.00
CHILDREN'S SERVICES,Domestic Goods-Other,ARGOS DIRECT,21/09/2017,-159.99
CHILDREN'S SERVICES,Education-Library Books,AMAZON.CO.UK,21/09/2017,3.15
CHILDREN'S SERVICES,Facilities-Advertising,WH SMITH,21/09/2017,16.51
CHILDREN'S SERVICES,Furniture-Domestic Furniture,IKEA ONLINE,21/09/2017,758.25
CHILDREN'S SERVICES,Mail Services-Postage,THE POST OFFICE,21/09/2017,260.00
CHILDREN'S SERVICES,Mail Services-Postage,POST OFFICE SELF SERVI,21/09/2017,19.47
CHILDREN'S SERVICES,Sports Equipment,J D SPORTS 651,21/09/2017,40.00
CHILDREN'S SERVICES,Taxi Fares,CITYFLEET/COMCAB,21/09/2017,9.40
CHILDREN'S SERVICES,Travel/Subsistence,TRAINLINE,21/09/2017,21.47
CHILDREN'S SERVICES,Travel/Subsistence,OYSTER BUS AUTOTOP,21/09/2017,40.00
CHILDREN'S SERVICES,Travel/Subsistence,OYSTER AUTOTOPUP,21/09/2017,40.00
CHILDREN'S SERVICES,Travel/Subsistence,TRAINLINE,21/09/2017,173.40
CHILDREN'S SERVICES,Travel/Subsistence,OYSTER AUTOTOPUP,21/09/2017,40.00
CHILDREN'S SERVICES,Travel/Subsistence,OYSTER AUTOTOPUP,21/09/2017,40.00
CHILDREN'S SERVICES,Travel/Subsistence,OYSTER AUTOSETTLE,21/09/2017,20.00
CHILDREN'S SERVICES,Travel/Subsistence,OYSTER RENEW WEB,21/09/2017,20.00
CHILDREN'S SERVICES,Travel/Subsistence,OYSTER AUTOSETTLE,21/09/2017,20.00
CHILDREN'S SERVICES,Travel/Subsistence,OYSTER RENEW WEB,21/09/2017,20.00
CHILDREN'S SERVICES,Travel/Subsistence,OYSTER RENEW WEB,21/09/2017,20.00
CHILDREN'S SERVICES,Travel/Subsistence,OYSTER RENEW WEB,21/09/2017,20.00
CHILDREN'S SERVICES,Travel/Subsistence,OYSTER BUS AUTOTOP,21/09/2017,20.00
CHILDREN'S SERVICES,Travel/Subsistence,OYSTER BUS AUTOTOP,21/09/2017,80.00
NEIGHBOURHOODS & GROWTH,Building-Timber,SCREWFIX DIRECT,21/09/2017,35.84
NEIGHBOURHOODS & GROWTH,Catering Food & Drink,LIDL UK,21/09/2017,65.91
NEIGHBOURHOODS & GROWTH,Catering Food & Drink,POUNDLAND,21/09/2017,14.25
NEIGHBOURHOODS & GROWTH,Catering Food & Drink,SAINSBURY'S S/MKT,21/09/2017,39.55
NEIGHBOURHOODS & GROWTH,Cemetery & Crematorium,Amazon UK Marketplace,21/09/2017,1.49
NEIGHBOURHOODS & GROWTH,Cemetery & Crematorium,Amazon UK Marketplace,21/09/2017,44.91
NEIGHBOURHOODS & GROWTH,Consultancy-Business,NEC PARKING,21/09/2017,12.00
NEIGHBOURHOODS & GROWTH,Domestic Goods-Other,LOCKFIELD SYSTEMS LTD,21/09/2017,39.16
NEIGHBOURHOODS & GROWTH,Domestic Goods-Other,MACHINE MART LTD,21/09/2017,9.98
NEIGHBOURHOODS & GROWTH,Domestic Goods-Other,AIR SEAL PRODUCTS LTD,21/09/2017,327.00
NEIGHBOURHOODS & GROWTH,Mail Services-Postage,POST OFFICE COUNTER,21/09/2017,3.40
NEIGHBOURHOODS & GROWTH,Stationery,Amazon UK Marketplace,21/09/2017,25.41
NEIGHBOURHOODS & GROWTH,Travel/Subsistence,TFL ROAD CHARGE,21/09/2017,11.50
NEIGHBOURHOODS & GROWTH,Travel/Subsistence,OYSTER AUTOTOPUP,21/09/2017,20.00
NEIGHBOURHOODS & GROWTH,Travel/Subsistence,OYSTER BUS AUTOSET,21/09/2017,20.00
NEIGHBOURHOODS & GROWTH,Travel/Subsistence,TFL CYCLE HIRE,21/09/2017,90.00
NEIGHBOURHOODS & GROWTH,Travel/Subsistence,GREATER ANGLIA TRAINS,21/09/2017,82.00
NEIGHBOURHOODS & GROWTH,Travel/Subsistence,OYSTER BUS AUTOTOP,21/09/2017,20.00
NEIGHBOURHOODS & GROWTH,Travel/Subsistence,OYSTER AUTOTOPUP,21/09/2017,20.00
ADULTS & PUBLIC HEALTH,Catering Food & Drink,ICELAND,22/09/2017,181.55
CHILDREN'S SERVICES,Domestic Goods-Other,TIMPSON LTD,22/09/2017,33.00
CORPORATE RESOURCES,Use of Public Transport,OYSTER BUS AUTOTOP,22/09/2017,20.00
NEIGHBOURHOODS & GROWTH,Building-Timber,TP BALHAM HILL,22/09/2017,7.18
CHILDREN'S SERVICES,Education-Library Books,Amazon UK Marketplace,23/09/2017,3.29
CORPORATE RESOURCES,Travel/Subsistence,OYSTER BUS AUTOTOP,23/09/2017,20.00
ADULTS & PUBLIC HEALTH,Facilities-Printing,Amazon UK Retail,24/09/2017,10.55
CHILDREN'S SERVICES,Education-Library Books,Amazon UK Retail,24/09/2017,7.21
CHILDREN'S SERVICES,Education-Library Books,Amazon UK Retail,24/09/2017,13.05
ADULTS & PUBLIC HEALTH,Organised Activities,ENFORCEMENT AGENT,25/09/2017,400.00
ADULTS & PUBLIC HEALTH,Organised Activities,ENFORCEMENT AGENT,25/09/2017,113.00
CHILDREN'S SERVICES,Education-Library Books,AMAZON.CO.UK,25/09/2017,36.05
CHILDREN'S SERVICES,Education-Other,LBL NOT PRESENT,25/09/2017,21.35
NEIGHBOURHOODS & GROWTH,Travel/Subsistence,LUL TICKET MACHINE,25/09/2017,60.00
ADULTS & PUBLIC HEALTH,Financial Services,NATWEST BANK /,26/09/2017,250.00
ADULTS & PUBLIC HEALTH,Financial Services,CASH ADVANCE FEE,26/09/2017,7.38
CHILDREN'S SERVICES,Facilities-Market Research,Amazon Prime,26/09/2017,-7.99
CORPORATE RESOURCES,Domestic Goods-Other,WWW.ARGOS.CO.UK,26/09/2017,173.94
CORPORATE RESOURCES,Financial Services,GRO HM PASSPORT OFFICE,26/09/2017,9.25
CORPORATE RESOURCES,Stationery,Amazon UK Marketplace,26/09/2017,73.15
CORPORATE RESOURCES,Travel/Subsistence,OYSTER BUS AUTOTOP,26/09/2017,40.00
NEIGHBOURHOODS & GROWTH (HRA),Use of Public Transport,LUL TICKET MACHINE,26/09/2017,50.00
NEIGHBOURHOODS & GROWTH (HRA),Use of Public Transport,ON THE GO,26/09/2017,201.00
ADULTS & PUBLIC HEALTH,Financial Services,SAINSBURYS CASH,27/09/2017,200.00
ADULTS & PUBLIC HEALTH,Financial Services-Banking,CASH ADVANCE FEE,27/09/2017,5.90
ADULTS & PUBLIC HEALTH,Travel/Subsistence,SW RAILWAY,27/09/2017,45.70
CHILDREN'S SERVICES,Catering Food & Drink,SAINSBURYS S/MKTS,27/09/2017,13.79
CHILDREN'S SERVICES,Legal Services-General Support,EYE NETWORK,27/09/2017,135.00
CHILDREN'S SERVICES,Travel/Subsistence,VIRGIN TRAINS,27/09/2017,52.10
CORPORATE RESOURCES,Catering Food & Drink,SAINSBURYS,27/09/2017,3.59
NEIGHBOURHOODS & GROWTH,Building-Timber,TP BALHAM HILL,27/09/2017,26.00
NEIGHBOURHOODS & GROWTH,Legal Services-General Support,LAND REGISTRY,27/09/2017,3.00
NEIGHBOURHOODS & GROWTH,Legal Services-General Support,LAND REGISTRY,27/09/2017,3.00
NEIGHBOURHOODS & GROWTH,Legal Services-General Support,LAND REGISTRY,27/09/2017,6.00
NEIGHBOURHOODS & GROWTH,Use of Public Transport,OYSTER RENEW TEL,27/09/2017,10.00
NEIGHBOURHOODS & GROWTH,Use of Public Transport,OYSTER RENEW WEB,27/09/2017,181.70
NEIGHBOURHOODS & GROWTH,Use of Public Transport,LUL TICKET MACHINE,27/09/2017,47.30
NEIGHBOURHOODS & GROWTH,Use of Public Transport,OYSTER RENEW WEB,27/09/2017,148.70
NEIGHBOURHOODS & GROWTH,Use of Public Transport,LUL TICKET MACHINE,27/09/2017,47.70
NEIGHBOURHOODS & GROWTH,Use of Public Transport,BRIX CENTRAL STOP,27/09/2017,12.00
NEIGHBOURHOODS & GROWTH,Use of Public Transport,LUL TICKET MACHINE,27/09/2017,47.30
NEIGHBOURHOODS & GROWTH,Use of Public Transport,OYSTER RENEW WEB,27/09/2017,33.00
NEIGHBOURHOODS & GROWTH,Use of Public Transport,BRIX CENTRAL STOP,27/09/2017,21.20
NEIGHBOURHOODS & GROWTH,Use of Public Transport,OYSTER RENEW WEB,27/09/2017,126.80
NEIGHBOURHOODS & GROWTH,Use of Public Transport,LUL TICKET MACHINE,27/09/2017,47.30
NEIGHBOURHOODS & GROWTH,Use of Public Transport,BRIX CENTRAL STOP,27/09/2017,21.20
NEIGHBOURHOODS & GROWTH,Use of Public Transport,LUL TICKET MACHINE,27/09/2017,47.30
ADULTS & PUBLIC HEALTH,Catering Food & Drink,MARKS&SPENCER PLC,28/09/2017,192.00
ADULTS & PUBLIC HEALTH,Catering Food & Drink,TESCO STORES 5999,28/09/2017,92.80
ADULTS & PUBLIC HEALTH,Education-Library Books,Amazon UK Marketplace,28/09/2017,9.98
ADULTS & PUBLIC HEALTH,Education-Library Books,Amazon UK Marketplace,28/09/2017,16.12
CHILDREN'S SERVICES,Domestic Goods-Other,WWW.ARGOS.CO.UK,28/09/2017,99.93
CHILDREN'S SERVICES,Education-Library Books,AMAZON.CO.UK,28/09/2017,40.06
CHILDREN'S SERVICES,Education-Library Books,URBAN AUTHORS,28/09/2017,6.98
CHILDREN'S SERVICES,Education-Library Books,AMAZON.CO.UK,28/09/2017,52.72
CHILDREN'S SERVICES,Education-Library Books,Amazon UK Marketplace,28/09/2017,39.23
CHILDREN'S SERVICES,Education-Library Books,Amazon UK Retail,28/09/2017,20.98
CHILDREN'S SERVICES,Education-Library Books,Amazon UK Marketplace,28/09/2017,16.27
CHILDREN'S SERVICES,Education-Library Books,Amazon UK Retail,28/09/2017,20.98
CHILDREN'S SERVICES,Education-Library Books,Amazon UK Marketplace,28/09/2017,73.80
CHILDREN'S SERVICES,Education-Library Books,Amazon UK Retail,28/09/2017,9.99
CHILDREN'S SERVICES,Organised Activities,WOWCHER,28/09/2017,317.98
CHILDREN'S SERVICES,Travel/Subsistence,OYSTER RENEW WEB,28/09/2017,20.00
CHILDREN'S SERVICES,Travel/Subsistence,OYSTER AUTOSETTLE,28/09/2017,20.00
CHILDREN'S SERVICES,Travel/Subsistence,OYSTER BUS AUTOSET,28/09/2017,20.00
CHILDREN'S SERVICES,Travel/Subsistence,OYSTER RENEW WEB,28/09/2017,20.00
CHILDREN'S SERVICES,Travel/Subsistence,OYSTER AUTOTOPUP,28/09/2017,20.00
CORPORATE RESOURCES,Travel/Subsistence,OYSTER AUTOTOPUP,28/09/2017,20.00
NEIGHBOURHOODS & GROWTH,Legal Services-General Support,LAND REGISTRY,28/09/2017,6.00
NEIGHBOURHOODS & GROWTH,Legal Services-General Support,LAND REGISTRY,28/09/2017,3.00
NEIGHBOURHOODS & GROWTH,Legal Services-General Support,LAND REGISTRY,28/09/2017,6.00
NEIGHBOURHOODS & GROWTH,Legal Services-General Support,LAND REGISTRY,28/09/2017,3.00
NEIGHBOURHOODS & GROWTH,Legal Services-General Support,LAND REGISTRY,28/09/2017,6.00
ADULTS & PUBLIC HEALTH,Catering Food & Drink,ICELAND,29/09/2017,81.43
ADULTS & PUBLIC HEALTH,Domestic Goods-Other,MORLEYS,29/09/2017,82.92
CHILDREN'S SERVICES,Books/Publications/Resources,WH SMITH,29/09/2017,301.40
CHILDREN'S SERVICES,Couriers,AnyVanUK,29/09/2017,23.00
CORPORATE RESOURCES,Accommodation,TRAVELODGE GB0000,29/09/2017,235.50
CORPORATE RESOURCES,Domestic Goods-Other,CURRYS ONLINE,29/09/2017,468.99
CORPORATE RESOURCES,Facilities-Printing,Amazon UK Retail,29/09/2017,43.08
CORPORATE RESOURCES,Legal Services-General Support,Amazon UK Retail,29/09/2017,177.99
CORPORATE RESOURCES,Mail Services-Postage,THE POST OFFICE,29/09/2017,6.45
CORPORATE RESOURCES,Travel/Subsistence,LUL TICKET MACHINE,29/09/2017,100.00
CORPORATE RESOURCES,Travel/Subsistence,LUL TICKET MACHINE,29/09/2017,50.00
CORPORATE RESOURCES,Travel/Subsistence,LUL TICKET MACHINE,29/09/2017,50.00
NEIGHBOURHOODS & GROWTH,Books/Publications/Resources,ARGOS,29/09/2017,67.13
NEIGHBOURHOODS & GROWTH,Books/Publications/Resources,H&M,29/09/2017,90.42
NEIGHBOURHOODS & GROWTH,Books/Publications/Resources,TK MAXX,29/09/2017,20.98
NEIGHBOURHOODS & GROWTH,Building-General,SCREWFIX,29/09/2017,83.39
NEIGHBOURHOODS & GROWTH,Building-Paint,B & Q 1009,29/09/2017,41.75
NEIGHBOURHOODS & GROWTH,Building-Paint,S LONDON DECORTORS,29/09/2017,105.97
NEIGHBOURHOODS & GROWTH,Building-Paint,S LONDON DECORTORS,29/09/2017,39.98
NEIGHBOURHOODS & GROWTH,Building-Paint,SCREWFIX DIRECT,29/09/2017,51.93
NEIGHBOURHOODS & GROWTH,Building-Timber,TP NORWOOD 9014,29/09/2017,25.81
NEIGHBOURHOODS & GROWTH,Domestic Goods-Other,WWW.MAPLIN.CO.UK,29/09/2017,46.63
NEIGHBOURHOODS & GROWTH,Subsistence: Lunch Allowance,SAINSBURY'S SMKT,29/09/2017,75.00
NEIGHBOURHOODS & GROWTH,Use of Public Transport,BRIX CENTRAL STOP,29/09/2017,45.00
NEIGHBOURHOODS & GROWTH,Use of Public Transport,LUL TICKET MACHINE,29/09/2017,26.20
NEIGHBOURHOODS & GROWTH,Use of Public Transport,LUL TICKET MACHINE,29/09/2017,71.20
NEIGHBOURHOODS & GROWTH,Use of Public Transport,BRIX CENTRAL STOP,29/09/2017,26.25
NEIGHBOURHOODS & GROWTH,Use of Public Transport,OYSTER RENEW WEB,29/09/2017,32.70
NEIGHBOURHOODS & GROWTH,Use of Public Transport,OYSTER RENEW WEB,29/09/2017,-33.00
NEIGHBOURHOODS & GROWTH,Use of Public Transport,BRIX CENTRAL STOP,29/09/2017,21.20
NEIGHBOURHOODS & GROWTH,Use of Public Transport,OYSTER RENEW WEB,29/09/2017,33.00
NEIGHBOURHOODS & GROWTH,Use of Public Transport,BRIX CENTRAL STOP,29/09/2017,29.00
ADULTS & PUBLIC HEALTH,Travel/Subsistence,OYSTER BUS AUTOTOP,30/09/2017,20.00
CORPORATE RESOURCES,Taxi Fares,ABBEY CARS FELTHAM,30/09/2017,53.50
CORPORATE RESOURCES,Travel/Subsistence,OYSTER AUTOTOPUP,30/09/2017,40.00
